{"text_format":"1","workbook":"xlsx","n_sheets":4,"sheets":["MENU","RELAIS","STAT","INFO"],"not_rendered":{"charts":6,"images":8,"macros":1,"external_links":0,"defined_names":12,"comments":0,"pivot_tables":0},"unopened":[],"bounds":{"document_bytes":16777216,"sheet_cells":100000,"rows_first":2000,"rows_last":500,"rows_between":2000,"halvings":0,"cell_chars":16384,"cell_head_chars":4096},"cells_cut":0,"cells_raw":0,"read":"whole","date_system":"1900"}

{"sheet":"MENU","index":0,"n_rows":31,"n_cols":6,"rows_kept":31,"cut":false,"hidden":false,"merged":[[4,3,11,6],[4,9,11,12],[30,5,31,10]]}
[]
[]
[]
[]
[]
[]
[]
[]
[]
[]
[]
[]
[]
[]
[]
[]
[]
[]
[]
[]
[]
[]
[]
[]
[]
[]
[]
[]
[]
[]
[null,null,null,null,null,{"$f":"RELAIS!A1","v":"Dernière sauvergarde le 27/06/18 15:32:02"}]

{"sheet":"RELAIS","index":1,"n_rows":14,"n_cols":8,"rows_kept":14,"cut":false,"hidden":false,"merged":[[2,6,3,6],[2,7,3,7],[0,1,0,5],[0,6,0,7],[1,0,1,7],[2,0,3,0],[2,1,3,1],[2,2,3,2],[2,3,3,3],[2,5,3,5]]}
["Dernière sauvergarde le 27/06/18 15:32:02","                       LE RELAI",null,null,null,null,{"$f":"A1","v":"Dernière sauvergarde le 27/06/18 15:32:02"}]
[]
["DATE","TERRAIN","TYPE D'ACTE(S)","DOMAINE D'INTERVENTION","FAMILLE","PARTENAIRE","CONTENU","NOMBRE D'ACTES"]
[null,null,null,null,"Nom Prénom"]
[]
["2018-06-15","New-York","CT","Logement"]
["2018-07-06","Londre","Réunion","Emploi/Activité/Professionnelle/Formation/ Mobilité"]
["2018-06-15","Londre","Atelier/Animation","Aide administrative-accès aux droits"]
["2018-08-09","Paris","Atelier/Animation","Vie locale/ Insertion sur le territoire"]
[null,"Londre","CT","Technique"]
[null,"Paris","Réunion","Médiation (avec le gestionnaire/ avec la collectivité)"]
[null,"Londre","Atelier/Animation","Emploi/Activité/Professionnelle/Formation/ Mobilité"]
[null,"Paris","administratif","Scolarisation"]
[null,"Londre","mail","Logement"]

{"sheet":"STAT","index":2,"n_rows":131,"n_cols":8,"rows_kept":131,"cut":false,"hidden":false,"merged":[[0,6,0,26],[59,2,59,5],[60,2,60,5],[61,2,61,5],[35,1,35,2],[65,2,65,5],[66,2,66,5],[95,2,95,6],[67,2,67,5],[68,2,68,5],[69,2,69,5],[70,2,70,5],[71,2,71,5],[98,2,98,5],[99,2,99,5],[100,2,100,5],[72,2,72,5],[58,2,58,6],[78,2,78,5],[96,2,96,5],[97,2,97,5],[73,2,73,5],[74,2,74,5],[75,2,75,5],[76,2,76,5],[77,2,77,5],[62,2,62,5],[63,2,63,5],[64,2,64,5],[128,0,128,2],[128,3,128,4],[118,2,118,5],[119,2,119,5],[120,2,120,5],[121,2,121,5],[109,2,109,5],[114,2,114,5],[115,2,115,5],[116,2,116,5],[117,2,117,5],[130,0,130,2],[130,3,130,4],[129,0,129,2],[129,3,129,4],[101,2,101,5],[102,2,102,5],[103,2,103,5],[104,2,104,5],[105,2,105,5],[110,2,110,5],[111,2,111,5],[112,2,112,5],[113,2,113,5],[106,2,106,5],[107,2,107,5],[108,2,108,5]]}
[null,null,null,null,null,null,"STATISTIQUE"]
[]
[]
[]
[]
[]
[]
[]
[]
[]
[]
[]
[]
[]
[]
[]
[]
[]
[]
[]
[]
[]
[]
[]
[]
[]
[]
[]
[]
[]
[]
[]
[]
[]
[]
["DATE","TERRAIN"]
["2018-06-05",{"$f":"INFO!A4","v":"Paris"},{"$f":"SUMPRODUCT((RELAIS!#REF!=STAT!A$37)*(RELAIS!B$5:B$1811=STAT!B37))","v":{"$error":"#REF!"}},null,{"$f":"SUMPRODUCT((RELAIS!A6:A24<=STAT!A38)*(RELAIS!A6:A24>=STAT!A37))","v":4}]
["2018-09-15",{"$f":"INFO!A5","v":"Londre"},{"$f":"SUMPRODUCT((RELAIS!#REF!=STAT!A$37)*(RELAIS!B$5:B$1811=STAT!B38))","v":{"$error":"#REF!"}}]
[null,{"$f":"INFO!A6","v":"Moscou"},{"$f":"SUMPRODUCT((RELAIS!#REF!=STAT!A$37)*(RELAIS!B$5:B$1811=STAT!B39))","v":{"$error":"#REF!"}}]
[null,{"$f":"INFO!A7","v":"New-York"},{"$f":"SUMPRODUCT((RELAIS!#REF!=STAT!A$37)*(RELAIS!B$5:B$1811=STAT!B40))","v":{"$error":"#REF!"}}]
[null,{"$f":"INFO!A8","v":0},{"$f":"SUMPRODUCT((RELAIS!#REF!=STAT!A$37)*(RELAIS!B$5:B$1811=STAT!B41))","v":{"$error":"#REF!"}}]
[null,{"$f":"INFO!A9","v":0},{"$f":"SUMPRODUCT((RELAIS!#REF!=STAT!A$37)*(RELAIS!B$5:B$1811=STAT!B42))","v":{"$error":"#REF!"}}]
[null,{"$f":"INFO!A10","v":0},{"$f":"SUMPRODUCT((RELAIS!#REF!=STAT!A$37)*(RELAIS!B$5:B$1811=STAT!B43))","v":{"$error":"#REF!"}}]
[null,{"$f":"INFO!A11","v":0},{"$f":"SUMPRODUCT((RELAIS!#REF!=STAT!A$37)*(RELAIS!B$5:B$1811=STAT!B44))","v":{"$error":"#REF!"}}]
[null,{"$f":"INFO!A12","v":0},{"$f":"SUMPRODUCT((RELAIS!#REF!=STAT!A$37)*(RELAIS!B$5:B$1811=STAT!B45))","v":{"$error":"#REF!"}}]
[null,{"$f":"INFO!A13","v":0},{"$f":"SUMPRODUCT((RELAIS!#REF!=STAT!A$37)*(RELAIS!B$5:B$1811=STAT!B46))","v":{"$error":"#REF!"}}]
[null,{"$f":"INFO!A14","v":0},{"$f":"SUMPRODUCT((RELAIS!#REF!=STAT!A$37)*(RELAIS!B$5:B$1811=STAT!B47))","v":{"$error":"#REF!"}}]
[null,{"$f":"INFO!A15","v":0},{"$f":"SUMPRODUCT((RELAIS!#REF!=STAT!A$37)*(RELAIS!B$5:B$1811=STAT!B48))","v":{"$error":"#REF!"}}]
[null,{"$f":"INFO!A16","v":0},{"$f":"SUMPRODUCT((RELAIS!#REF!=STAT!A$37)*(RELAIS!B$5:B$1811=STAT!B49))","v":{"$error":"#REF!"}}]
[null,{"$f":"INFO!A17","v":0},{"$f":"SUMPRODUCT((RELAIS!#REF!=STAT!A$37)*(RELAIS!B$5:B$1811=STAT!B50))","v":{"$error":"#REF!"}}]
[null,{"$f":"INFO!A18","v":0},{"$f":"SUMPRODUCT((RELAIS!#REF!=STAT!A$37)*(RELAIS!B$5:B$1811=STAT!B51))","v":{"$error":"#REF!"}}]
[null,{"$f":"INFO!A19","v":0},{"$f":"SUMPRODUCT((RELAIS!#REF!=STAT!A$37)*(RELAIS!B$5:B$1811=STAT!B52))","v":{"$error":"#REF!"}}]
[null,{"$f":"INFO!A20","v":0},{"$f":"SUMPRODUCT((RELAIS!#REF!=STAT!A$37)*(RELAIS!B$5:B$1811=STAT!B53))","v":{"$error":"#REF!"}}]
[null,{"$f":"INFO!A21","v":0},{"$f":"SUMPRODUCT((RELAIS!#REF!=STAT!A$37)*(RELAIS!B$5:B$1811=STAT!B54))","v":{"$error":"#REF!"}}]
[null,{"$f":"INFO!A22","v":0},{"$f":"SUMPRODUCT((RELAIS!#REF!=STAT!A$37)*(RELAIS!B$5:B$1811=STAT!B55))","v":{"$error":"#REF!"}}]
[]
[]
[]
["DATE","TERRAIN","DOMAINE"]
["2018-06-05","Paris",{"$f":"INFO!E4","v":"Aide administrative-accès aux droits"},null,null,null,{"$f":"SUMPRODUCT((RELAIS!#REF!=STAT!A$60)*(RELAIS!B$6:B$1811=STAT!$B$60)*(RELAIS!D$6:D$1811=STAT!$C60))","v":{"$error":"#REF!"}}]
["2018-09-15",null,{"$f":"INFO!E5","v":"Budget/aide sociales"},null,null,null,{"$f":"SUMPRODUCT((RELAIS!#REF!=STAT!A$60)*(RELAIS!B$6:B$1811=STAT!$B$60)*(RELAIS!D$6:D$1811=STAT!$C61))","v":{"$error":"#REF!"}}]
[null,null,{"$f":"INFO!E6","v":"Logement"},null,null,null,{"$f":"SUMPRODUCT((RELAIS!#REF!=STAT!A$60)*(RELAIS!B$6:B$1811=STAT!$B$60)*(RELAIS!D$6:D$1811=STAT!$C62))","v":{"$error":"#REF!"}}]
[null,null,{"$f":"INFO!E7","v":"Santé"},null,null,null,{"$f":"SUMPRODUCT((RELAIS!#REF!=STAT!A$60)*(RELAIS!B$6:B$1811=STAT!$B$60)*(RELAIS!D$6:D$1811=STAT!$C63))","v":{"$error":"#REF!"}}]
[null,null,{"$f":"INFO!E8","v":"Emploi/Activité/Professionnelle/Formation/ Mobilité"},null,null,null,{"$f":"SUMPRODUCT((RELAIS!#REF!=STAT!A$60)*(RELAIS!B$6:B$1811=STAT!$B$60)*(RELAIS!D$6:D$1811=STAT!$C64))","v":{"$error":"#REF!"}}]
[null,null,{"$f":"INFO!E9","v":"Scolarisation"},null,null,null,{"$f":"SUMPRODUCT((RELAIS!#REF!=STAT!A$60)*(RELAIS!B$6:B$1811=STAT!$B$60)*(RELAIS!D$6:D$1811=STAT!$C65))","v":{"$error":"#REF!"}}]
[null,null,{"$f":"INFO!E10","v":"Famille/ Parentalité/ Loisirs/ Enfance/ Jeunesse"},null,null,null,{"$f":"SUMPRODUCT((RELAIS!#REF!=STAT!A$60)*(RELAIS!B$6:B$1811=STAT!$B$60)*(RELAIS!D$6:D$1811=STAT!$C66))","v":{"$error":"#REF!"}}]
[null,null,{"$f":"INFO!E11","v":"Vie locale/ Insertion sur le territoire"},null,null,null,{"$f":"SUMPRODUCT((RELAIS!#REF!=STAT!A$60)*(RELAIS!B$6:B$1811=STAT!$B$60)*(RELAIS!D$6:D$1811=STAT!$C67))","v":{"$error":"#REF!"}}]
[null,null,{"$f":"INFO!E12","v":"Divers"},null,null,null,{"$f":"SUMPRODUCT((RELAIS!#REF!=STAT!A$60)*(RELAIS!B$6:B$1811=STAT!$B$60)*(RELAIS!D$6:D$1811=STAT!$C68))","v":{"$error":"#REF!"}}]
[null,null,{"$f":"INFO!E13","v":"Médiation (avec le gestionnaire/ avec la collectivité)"},null,null,null,{"$f":"SUMPRODUCT((RELAIS!#REF!=STAT!A$60)*(RELAIS!B$6:B$1811=STAT!$B$60)*(RELAIS!D$6:D$1811=STAT!$C69))","v":{"$error":"#REF!"}}]
[null,null,{"$f":"INFO!E14","v":"Technique"},null,null,null,{"$f":"SUMPRODUCT((RELAIS!#REF!=STAT!A$60)*(RELAIS!B$6:B$1811=STAT!$B$60)*(RELAIS!D$6:D$1811=STAT!$C70))","v":{"$error":"#REF!"}}]
[null,null,{"$f":"INFO!E15","v":"Environnement/ Fluides"},null,null,null,{"$f":"SUMPRODUCT((RELAIS!#REF!=STAT!A$60)*(RELAIS!B$6:B$1811=STAT!$B$60)*(RELAIS!D$6:D$1811=STAT!$C71))","v":{"$error":"#REF!"}}]
[null,null,{"$f":"INFO!E16","v":"Suivi d'activité"},null,null,null,{"$f":"SUMPRODUCT((RELAIS!#REF!=STAT!A$60)*(RELAIS!B$6:B$1811=STAT!$B$60)*(RELAIS!D$6:D$1811=STAT!$C72))","v":{"$error":"#REF!"}}]
[null,null,{"$f":"INFO!E17","v":"Inclusion numérique"},null,null,null,{"$f":"SUMPRODUCT((RELAIS!#REF!=STAT!A$60)*(RELAIS!B$6:B$1811=STAT!$B$60)*(RELAIS!D$6:D$1811=STAT!$C73))","v":{"$error":"#REF!"}}]
[null,null,{"$f":"INFO!E18","v":0},null,null,null,{"$f":"SUMPRODUCT((RELAIS!#REF!=STAT!A$60)*(RELAIS!B$6:B$1811=STAT!$B$60)*(RELAIS!D$6:D$1811=STAT!$C74))","v":{"$error":"#REF!"}}]
[null,null,{"$f":"INFO!E19","v":0},null,null,null,{"$f":"SUMPRODUCT((RELAIS!#REF!=STAT!A$60)*(RELAIS!B$6:B$1811=STAT!$B$60)*(RELAIS!D$6:D$1811=STAT!$C75))","v":{"$error":"#REF!"}}]
[null,null,{"$f":"INFO!E20","v":0},null,null,null,{"$f":"SUMPRODUCT((RELAIS!#REF!=STAT!A$60)*(RELAIS!B$6:B$1811=STAT!$B$60)*(RELAIS!D$6:D$1811=STAT!$C76))","v":{"$error":"#REF!"}}]
[null,null,{"$f":"INFO!E21","v":0},null,null,null,{"$f":"SUMPRODUCT((RELAIS!#REF!=STAT!A$60)*(RELAIS!B$6:B$1811=STAT!$B$60)*(RELAIS!D$6:D$1811=STAT!$C77))","v":{"$error":"#REF!"}}]
[null,null,{"$f":"INFO!E22","v":0},null,null,null,{"$f":"SUMPRODUCT((RELAIS!#REF!=STAT!A$60)*(RELAIS!B$6:B$1811=STAT!$B$60)*(RELAIS!D$6:D$1811=STAT!$C78))","v":{"$error":"#REF!"}}]
[null,null,{"$f":"INFO!E23","v":0},null,null,null,{"$f":"SUMPRODUCT((RELAIS!#REF!=STAT!A$60)*(RELAIS!B$6:B$1811=STAT!$B$60)*(RELAIS!D$6:D$1811=STAT!$C79))","v":{"$error":"#REF!"}}]
[]
[]
[]
[]
[]
[]
[]
[]
[]
[]
[]
[]
[]
[]
[]
[]
["DATE","TERRAIN","DOMAINE"]
["2018-06-05","Londre",{"$f":"INFO!E4","v":"Aide administrative-accès aux droits"},null,null,null,{"$f":"SUMPRODUCT((RELAIS!#REF!=STAT!A$97)*(RELAIS!B$6:B$1811=STAT!$B$97)*(RELAIS!D$6:D$1811=STAT!$C97))","v":{"$error":"#REF!"}},{"$f":"G97/G$123","v":{"$error":"#REF!"}}]
["2018-09-15",null,{"$f":"INFO!E5","v":"Budget/aide sociales"},null,null,null,{"$f":"SUMPRODUCT((RELAIS!#REF!=STAT!A$97)*(RELAIS!B$6:B$1811=STAT!$B$97)*(RELAIS!D$6:D$1811=STAT!$C98))","v":{"$error":"#REF!"}},{"$f":"G98/G$123","v":{"$error":"#REF!"}}]
[null,null,{"$f":"INFO!E6","v":"Logement"},null,null,null,{"$f":"SUMPRODUCT((RELAIS!#REF!=STAT!A$97)*(RELAIS!B$6:B$1811=STAT!$B$97)*(RELAIS!D$6:D$1811=STAT!$C99))","v":{"$error":"#REF!"}},{"$error":"#REF!"}]
[null,null,{"$f":"INFO!E7","v":"Santé"},null,null,null,{"$f":"SUMPRODUCT((RELAIS!#REF!=STAT!A$97)*(RELAIS!B$6:B$1811=STAT!$B$97)*(RELAIS!D$6:D$1811=STAT!$C100))","v":{"$error":"#REF!"}},{"$error":"#REF!"}]
[null,null,{"$f":"INFO!E8","v":"Emploi/Activité/Professionnelle/Formation/ Mobilité"},null,null,null,{"$f":"SUMPRODUCT((RELAIS!#REF!=STAT!A$97)*(RELAIS!B$6:B$1811=STAT!$B$97)*(RELAIS!D$6:D$1811=STAT!$C101))","v":{"$error":"#REF!"}},{"$error":"#REF!"}]
[null,null,{"$f":"INFO!E9","v":"Scolarisation"},null,null,null,{"$f":"SUMPRODUCT((RELAIS!#REF!=STAT!A$97)*(RELAIS!B$6:B$1811=STAT!$B$97)*(RELAIS!D$6:D$1811=STAT!$C102))","v":{"$error":"#REF!"}},{"$error":"#REF!"}]
[null,null,{"$f":"INFO!E10","v":"Famille/ Parentalité/ Loisirs/ Enfance/ Jeunesse"},null,null,null,{"$f":"SUMPRODUCT((RELAIS!#REF!=STAT!A$97)*(RELAIS!B$6:B$1811=STAT!$B$97)*(RELAIS!D$6:D$1811=STAT!$C103))","v":{"$error":"#REF!"}},{"$error":"#REF!"}]
[null,null,{"$f":"INFO!E11","v":"Vie locale/ Insertion sur le territoire"},null,null,null,{"$f":"SUMPRODUCT((RELAIS!#REF!=STAT!A$97)*(RELAIS!B$6:B$1811=STAT!$B$97)*(RELAIS!D$6:D$1811=STAT!$C104))","v":{"$error":"#REF!"}},{"$error":"#REF!"}]
[null,null,{"$f":"INFO!E12","v":"Divers"},null,null,null,{"$f":"SUMPRODUCT((RELAIS!#REF!=STAT!A$97)*(RELAIS!B$6:B$1811=STAT!$B$97)*(RELAIS!D$6:D$1811=STAT!$C105))","v":{"$error":"#REF!"}},{"$error":"#REF!"}]
[null,null,{"$f":"INFO!E13","v":"Médiation (avec le gestionnaire/ avec la collectivité)"},null,null,null,{"$f":"SUMPRODUCT((RELAIS!#REF!=STAT!A$97)*(RELAIS!B$6:B$1811=STAT!$B$97)*(RELAIS!D$6:D$1811=STAT!$C106))","v":{"$error":"#REF!"}},{"$error":"#REF!"}]
[null,null,{"$f":"INFO!E14","v":"Technique"},null,null,null,{"$f":"SUMPRODUCT((RELAIS!#REF!=STAT!A$97)*(RELAIS!B$6:B$1811=STAT!$B$97)*(RELAIS!D$6:D$1811=STAT!$C107))","v":{"$error":"#REF!"}},{"$error":"#REF!"}]
[null,null,{"$f":"INFO!E15","v":"Environnement/ Fluides"},null,null,null,{"$f":"SUMPRODUCT((RELAIS!#REF!=STAT!A$97)*(RELAIS!B$6:B$1811=STAT!$B$97)*(RELAIS!D$6:D$1811=STAT!$C108))","v":{"$error":"#REF!"}},{"$error":"#REF!"}]
[null,null,{"$f":"INFO!E16","v":"Suivi d'activité"},null,null,null,{"$f":"SUMPRODUCT((RELAIS!#REF!=STAT!A$97)*(RELAIS!B$6:B$1811=STAT!$B$97)*(RELAIS!D$6:D$1811=STAT!$C109))","v":{"$error":"#REF!"}},{"$error":"#REF!"}]
[null,null,{"$f":"INFO!E17","v":"Inclusion numérique"},null,null,null,{"$f":"SUMPRODUCT((RELAIS!#REF!=STAT!A$97)*(RELAIS!B$6:B$1811=STAT!$B$97)*(RELAIS!D$6:D$1811=STAT!$C110))","v":{"$error":"#REF!"}},{"$error":"#REF!"}]
[null,null,{"$f":"INFO!E18","v":0},null,null,null,{"$f":"SUMPRODUCT((RELAIS!#REF!=STAT!A$97)*(RELAIS!B$6:B$1811=STAT!$B$97)*(RELAIS!D$6:D$1811=STAT!$C111))","v":{"$error":"#REF!"}},{"$error":"#REF!"}]
[null,null,{"$f":"INFO!E19","v":0},null,null,null,{"$f":"SUMPRODUCT((RELAIS!#REF!=STAT!A$97)*(RELAIS!B$6:B$1811=STAT!$B$97)*(RELAIS!D$6:D$1811=STAT!$C112))","v":{"$error":"#REF!"}},{"$error":"#REF!"}]
[null,null,{"$f":"INFO!E20","v":0},null,null,null,{"$f":"SUMPRODUCT((RELAIS!#REF!=STAT!A$97)*(RELAIS!B$6:B$1811=STAT!$B$97)*(RELAIS!D$6:D$1811=STAT!$C113))","v":{"$error":"#REF!"}},{"$error":"#REF!"}]
[null,null,{"$f":"INFO!E21","v":0},null,null,null,{"$f":"SUMPRODUCT((RELAIS!#REF!=STAT!A$97)*(RELAIS!B$6:B$1811=STAT!$B$97)*(RELAIS!D$6:D$1811=STAT!$C114))","v":{"$error":"#REF!"}},{"$error":"#REF!"}]
[null,null,{"$f":"INFO!E22","v":0},null,null,null,{"$f":"SUMPRODUCT((RELAIS!#REF!=STAT!A$97)*(RELAIS!B$6:B$1811=STAT!$B$97)*(RELAIS!D$6:D$1811=STAT!$C115))","v":{"$error":"#REF!"}},{"$error":"#REF!"}]
[null,null,{"$f":"INFO!E23","v":0},null,null,null,{"$f":"SUMPRODUCT((RELAIS!#REF!=STAT!A$97)*(RELAIS!B$6:B$1811=STAT!$B$97)*(RELAIS!D$6:D$1811=STAT!$C116))","v":{"$error":"#REF!"}},{"$error":"#REF!"}]
[null,null,{"$f":"INFO!E24","v":0},null,null,null,{"$f":"SUMPRODUCT((RELAIS!#REF!=STAT!A$97)*(RELAIS!B$6:B$1811=STAT!$B$97)*(RELAIS!D$6:D$1811=STAT!$C117))","v":{"$error":"#REF!"}},{"$error":"#REF!"}]
[null,null,{"$f":"INFO!E25","v":0},null,null,null,{"$f":"SUMPRODUCT((RELAIS!#REF!=STAT!A$97)*(RELAIS!B$6:B$1811=STAT!$B$97)*(RELAIS!D$6:D$1811=STAT!$C118))","v":{"$error":"#REF!"}},{"$error":"#REF!"}]
[null,null,{"$f":"INFO!E26","v":0},null,null,null,{"$f":"SUMPRODUCT((RELAIS!#REF!=STAT!A$97)*(RELAIS!B$6:B$1811=STAT!$B$97)*(RELAIS!D$6:D$1811=STAT!$C119))","v":{"$error":"#REF!"}},{"$error":"#REF!"}]
[null,null,{"$f":"INFO!E27","v":0},null,null,null,{"$f":"SUMPRODUCT((RELAIS!#REF!=STAT!A$97)*(RELAIS!B$6:B$1811=STAT!$B$97)*(RELAIS!D$6:D$1811=STAT!$C120))","v":{"$error":"#REF!"}},{"$error":"#REF!"}]
[null,null,{"$f":"INFO!E28","v":0},null,null,null,{"$f":"SUMPRODUCT((RELAIS!#REF!=STAT!A$97)*(RELAIS!B$6:B$1811=STAT!$B$97)*(RELAIS!D$6:D$1811=STAT!$C121))","v":{"$error":"#REF!"}},{"$error":"#REF!"}]
[null,null,{"$f":"INFO!E29","v":0},null,null,null,{"$f":"SUMPRODUCT((RELAIS!#REF!=STAT!A$97)*(RELAIS!B$6:B$1811=STAT!$B$97)*(RELAIS!D$6:D$1811=STAT!$C122))","v":{"$error":"#REF!"}},{"$error":"#REF!"}]
[null,null,null,null,null,null,{"$f":"SUM(G97:G122)","v":{"$error":"#REF!"}}]
[]
[]
[]
[]
[]
["Médiation + Technique",null,null,"Autres Actes"]
[{"$f":"INFO!F13+INFO!F14","v":2},null,null,{"$f":"INFO!F4+INFO!F5+INFO!F6+INFO!F7+INFO!F8+INFO!F9+INFO!F10+INFO!F11+INFO!F12+INFO!F15+INFO!F16+INFO!F17","v":7},null,{"$f":"SUM(A130:D130)","v":9}]
[{"$f":"A130/F130","v":0.22222222222222221},null,null,{"$f":"D130/F130","v":0.77777777777777779}]

{"sheet":"INFO","index":3,"n_rows":501,"n_cols":8,"rows_kept":501,"cut":false,"hidden":false,"merged":[[0,0,0,7]]}
[]
[]
["TERRAIN","NB","TYPE D'ACTE(S)","NB","DOMAINE D'INTERVENTION","NB","FAMILLE (Nom Prénom)","NB"]
["Paris",{"$f":"COUNTIF(RELAIS!B$6:B$10002,A4)","v":3},"mail",{"$f":"COUNTIF(RELAIS!C$6:C$10002,C4)","v":1},"Aide administrative-accès aux droits",{"$f":"COUNTIF(RELAIS!D$6:D$10002,E4)","v":1},null,{"$f":"COUNTIF(RELAIS!E$6:E$1812, INFO!G4)","v":0}]
["Londre",{"$f":"COUNTIF(RELAIS!B$6:B$10002,A5)","v":5},"CT",{"$f":"COUNTIF(RELAIS!C$6:C$10002,C5)","v":2},"Budget/aide sociales",{"$f":"COUNTIF(RELAIS!D$6:D$10002,E5)","v":0},null,{"$f":"COUNTIF(RELAIS!E$6:E$1812, INFO!G5)","v":0}]
["Moscou",{"$f":"COUNTIF(RELAIS!B$6:B$10002,A6)","v":0},"Entretien",{"$f":"COUNTIF(RELAIS!C$6:C$10002,C6)","v":0},"Logement",{"$f":"COUNTIF(RELAIS!D$6:D$10002,E6)","v":2},null,{"$f":"COUNTIF(RELAIS!E$6:E$1812, INFO!G6)","v":0}]
["New-York",{"$f":"COUNTIF(RELAIS!B$6:B$10002,A7)","v":1},"Réunion",{"$f":"COUNTIF(RELAIS!C$6:C$10002,C7)","v":2},"Santé",{"$f":"COUNTIF(RELAIS!D$6:D$10002,E7)","v":0},null,{"$f":"COUNTIF(RELAIS!E$6:E$1812, INFO!G7)","v":0}]
[null,{"$f":"COUNTIF(RELAIS!B$6:B$10002,A8)","v":0},"Atelier/Animation",{"$f":"COUNTIF(RELAIS!C$6:C$10002,C8)","v":3},"Emploi/Activité/Professionnelle/Formation/ Mobilité",{"$f":"COUNTIF(RELAIS!D$6:D$10002,E8)","v":2},null,{"$f":"COUNTIF(RELAIS!E$6:E$1812, INFO!G8)","v":0}]
[null,{"$f":"COUNTIF(RELAIS!B$6:B$10002,A9)","v":0},"administratif",{"$f":"COUNTIF(RELAIS!C$6:C$10002,C9)","v":1},"Scolarisation",{"$f":"COUNTIF(RELAIS!D$6:D$10002,E9)","v":1},null,{"$f":"COUNTIF(RELAIS!E$6:E$1812, INFO!G9)","v":0}]
[null,{"$f":"COUNTIF(RELAIS!B$6:B$10002,A10)","v":0},null,{"$f":"COUNTIF(RELAIS!C$6:C$10002,C10)","v":0},"Famille/ Parentalité/ Loisirs/ Enfance/ Jeunesse",{"$f":"COUNTIF(RELAIS!D$6:D$10002,E10)","v":0},null,{"$f":"COUNTIF(RELAIS!E$6:E$1812, INFO!G10)","v":0}]
[null,{"$f":"COUNTIF(RELAIS!B$6:B$10002,A11)","v":0},null,{"$f":"COUNTIF(RELAIS!C$6:C$10002,C11)","v":0},"Vie locale/ Insertion sur le territoire",{"$f":"COUNTIF(RELAIS!D$6:D$10002,E11)","v":1},null,{"$f":"COUNTIF(RELAIS!E$6:E$1812, INFO!G11)","v":0}]
[null,{"$f":"COUNTIF(RELAIS!B$6:B$10002,A12)","v":0},null,{"$f":"COUNTIF(RELAIS!C$6:C$10002,C12)","v":0},"Divers",{"$f":"COUNTIF(RELAIS!D$6:D$10002,E12)","v":0},null,{"$f":"COUNTIF(RELAIS!E$6:E$1812, INFO!G12)","v":0}]
[null,{"$f":"COUNTIF(RELAIS!B$6:B$10002,A13)","v":0},null,{"$f":"COUNTIF(RELAIS!C$6:C$10002,C13)","v":0},"Médiation (avec le gestionnaire/ avec la collectivité)",{"$f":"COUNTIF(RELAIS!D$6:D$10002,E13)","v":1},null,{"$f":"COUNTIF(RELAIS!E$6:E$1812, INFO!G13)","v":0}]
[null,{"$f":"COUNTIF(RELAIS!B$6:B$10002,A14)","v":0},null,{"$f":"COUNTIF(RELAIS!C$6:C$10002,C14)","v":0},"Technique",{"$f":"COUNTIF(RELAIS!D$6:D$10002,E14)","v":1},null,{"$f":"COUNTIF(RELAIS!E$6:E$1812, INFO!G14)","v":0}]
[null,{"$f":"COUNTIF(RELAIS!B$6:B$10002,A15)","v":0},null,{"$f":"COUNTIF(RELAIS!C$6:C$10002,C15)","v":0},"Environnement/ Fluides",{"$f":"COUNTIF(RELAIS!D$6:D$10002,E15)","v":0},null,{"$f":"COUNTIF(RELAIS!E$6:E$1812, INFO!G15)","v":0}]
[null,{"$f":"COUNTIF(RELAIS!B$6:B$10002,A16)","v":0},null,{"$f":"COUNTIF(RELAIS!C$6:C$10002,C16)","v":0},"Suivi d'activité",{"$f":"COUNTIF(RELAIS!D$6:D$10002,E16)","v":0},null,{"$f":"COUNTIF(RELAIS!E$6:E$1812, INFO!G16)","v":0}]
[null,{"$f":"COUNTIF(RELAIS!B$6:B$10002,A17)","v":0},null,{"$f":"COUNTIF(RELAIS!C$6:C$10002,C17)","v":0},"Inclusion numérique",{"$f":"COUNTIF(RELAIS!D$6:D$10002,E17)","v":0},null,{"$f":"COUNTIF(RELAIS!E$6:E$1812, INFO!G17)","v":0}]
[null,{"$f":"COUNTIF(RELAIS!B$6:B$10002,A18)","v":0},null,{"$f":"COUNTIF(RELAIS!C$6:C$10002,C18)","v":0},null,{"$f":"COUNTIF(RELAIS!D$6:D$10002,E18)","v":0},null,{"$f":"COUNTIF(RELAIS!E$6:E$1812, INFO!G18)","v":0}]
[null,{"$f":"COUNTIF(RELAIS!B$6:B$10002,A19)","v":0},null,{"$f":"COUNTIF(RELAIS!C$6:C$10002,C19)","v":0},null,{"$f":"COUNTIF(RELAIS!D$6:D$10002,E19)","v":0},null,{"$f":"COUNTIF(RELAIS!E$6:E$1812, INFO!G19)","v":0}]
[null,{"$f":"COUNTIF(RELAIS!B$6:B$10002,A20)","v":0},null,{"$f":"COUNTIF(RELAIS!C$6:C$10002,C20)","v":0},null,{"$f":"COUNTIF(RELAIS!D$6:D$10002,E20)","v":0},null,{"$f":"COUNTIF(RELAIS!E$6:E$1812, INFO!G20)","v":0}]
[null,{"$f":"COUNTIF(RELAIS!B$6:B$10002,A21)","v":0},null,{"$f":"COUNTIF(RELAIS!C$6:C$10002,C21)","v":0},null,{"$f":"COUNTIF(RELAIS!D$6:D$10002,E21)","v":0},null,{"$f":"COUNTIF(RELAIS!E$6:E$1812, INFO!G21)","v":0}]
[null,{"$f":"COUNTIF(RELAIS!B$6:B$10002,A22)","v":0},null,{"$f":"COUNTIF(RELAIS!C$6:C$10002,C22)","v":0},null,{"$f":"COUNTIF(RELAIS!D$6:D$10002,E22)","v":0},null,{"$f":"COUNTIF(RELAIS!E$6:E$1812, INFO!G22)","v":0}]
[null,{"$f":"COUNTIF(RELAIS!B$6:B$10002,A23)","v":0},null,{"$f":"COUNTIF(RELAIS!C$6:C$10002,C23)","v":0},null,{"$f":"COUNTIF(RELAIS!D$6:D$10002,E23)","v":0},null,{"$f":"COUNTIF(RELAIS!E$6:E$1812, INFO!G23)","v":0}]
[null,{"$f":"COUNTIF(RELAIS!B$6:B$10002,A24)","v":0},null,{"$f":"COUNTIF(RELAIS!C$6:C$10002,C24)","v":0},null,{"$f":"COUNTIF(RELAIS!D$6:D$10002,E24)","v":0},null,{"$f":"COUNTIF(RELAIS!E$6:E$1812, INFO!G24)","v":0}]
[null,{"$f":"COUNTIF(RELAIS!B$6:B$10002,A25)","v":0},null,{"$f":"COUNTIF(RELAIS!C$6:C$10002,C25)","v":0},null,{"$f":"COUNTIF(RELAIS!D$6:D$10002,E25)","v":0},null,{"$f":"COUNTIF(RELAIS!E$6:E$1812, INFO!G25)","v":0}]
[null,{"$f":"COUNTIF(RELAIS!B$6:B$10002,A26)","v":0},null,{"$f":"COUNTIF(RELAIS!C$6:C$10002,C26)","v":0},null,{"$f":"COUNTIF(RELAIS!D$6:D$10002,E26)","v":0},null,{"$f":"COUNTIF(RELAIS!E$6:E$1812, INFO!G26)","v":0}]
[null,{"$f":"COUNTIF(RELAIS!B$6:B$10002,A27)","v":0},null,{"$f":"COUNTIF(RELAIS!C$6:C$10002,C27)","v":0},null,{"$f":"COUNTIF(RELAIS!D$6:D$10002,E27)","v":0},null,{"$f":"COUNTIF(RELAIS!E$6:E$1812, INFO!G27)","v":0}]
[null,{"$f":"COUNTIF(RELAIS!B$6:B$10002,A28)","v":0},null,{"$f":"COUNTIF(RELAIS!C$6:C$10002,C28)","v":0},null,{"$f":"COUNTIF(RELAIS!D$6:D$10002,E28)","v":0},null,{"$f":"COUNTIF(RELAIS!E$6:E$1812, INFO!G28)","v":0}]
[null,{"$f":"COUNTIF(RELAIS!B$6:B$10002,A29)","v":0},null,{"$f":"COUNTIF(RELAIS!C$6:C$10002,C29)","v":0},null,{"$f":"COUNTIF(RELAIS!D$6:D$10002,E29)","v":0},null,{"$f":"COUNTIF(RELAIS!E$6:E$1812, INFO!G29)","v":0}]
[null,{"$f":"COUNTIF(RELAIS!B$6:B$10002,A30)","v":0},null,{"$f":"COUNTIF(RELAIS!C$6:C$10002,C30)","v":0},null,{"$f":"COUNTIF(RELAIS!D$6:D$10002,E30)","v":0},null,{"$f":"COUNTIF(RELAIS!E$6:E$1812, INFO!G30)","v":0}]
[null,{"$f":"COUNTIF(RELAIS!B$6:B$10002,A31)","v":0},null,{"$f":"COUNTIF(RELAIS!C$6:C$10002,C31)","v":0},null,{"$f":"COUNTIF(RELAIS!D$6:D$10002,E31)","v":0},null,{"$f":"COUNTIF(RELAIS!E$6:E$1812, INFO!G31)","v":0}]
[null,{"$f":"COUNTIF(RELAIS!B$6:B$10002,A32)","v":0},null,{"$f":"COUNTIF(RELAIS!C$6:C$10002,C32)","v":0},null,{"$f":"COUNTIF(RELAIS!D$6:D$10002,E32)","v":0},null,{"$f":"COUNTIF(RELAIS!E$6:E$1812, INFO!G32)","v":0}]
[null,{"$f":"COUNTIF(RELAIS!B$6:B$10002,A33)","v":0},null,{"$f":"COUNTIF(RELAIS!C$6:C$10002,C33)","v":0},null,{"$f":"COUNTIF(RELAIS!D$6:D$10002,E33)","v":0},null,{"$f":"COUNTIF(RELAIS!E$6:E$1812, INFO!G33)","v":0}]
[null,{"$f":"COUNTIF(RELAIS!B$6:B$10002,A34)","v":0},null,{"$f":"COUNTIF(RELAIS!C$6:C$10002,C34)","v":0},null,{"$f":"COUNTIF(RELAIS!D$6:D$10002,E34)","v":0},null,{"$f":"COUNTIF(RELAIS!E$6:E$1812, INFO!G34)","v":0}]
[null,{"$f":"COUNTIF(RELAIS!B$6:B$10002,A35)","v":0},null,{"$f":"COUNTIF(RELAIS!C$6:C$10002,C35)","v":0},null,{"$f":"COUNTIF(RELAIS!D$6:D$10002,E35)","v":0},null,{"$f":"COUNTIF(RELAIS!E$6:E$1812, INFO!G35)","v":0}]
[null,{"$f":"COUNTIF(RELAIS!B$6:B$10002,A36)","v":0},null,{"$f":"COUNTIF(RELAIS!C$6:C$10002,C36)","v":0},null,{"$f":"COUNTIF(RELAIS!D$6:D$10002,E36)","v":0},null,{"$f":"COUNTIF(RELAIS!E$6:E$1812, INFO!G36)","v":0}]
[null,{"$f":"COUNTIF(RELAIS!B$6:B$10002,A37)","v":0},null,{"$f":"COUNTIF(RELAIS!C$6:C$10002,C37)","v":0},null,{"$f":"COUNTIF(RELAIS!D$6:D$10002,E37)","v":0},null,{"$f":"COUNTIF(RELAIS!E$6:E$1812, INFO!G37)","v":0}]
[null,{"$f":"COUNTIF(RELAIS!B$6:B$10002,A38)","v":0},null,{"$f":"COUNTIF(RELAIS!C$6:C$10002,C38)","v":0},null,{"$f":"COUNTIF(RELAIS!D$6:D$10002,E38)","v":0},null,{"$f":"COUNTIF(RELAIS!E$6:E$1812, INFO!G38)","v":0}]
[null,{"$f":"COUNTIF(RELAIS!B$6:B$10002,A39)","v":0},null,{"$f":"COUNTIF(RELAIS!C$6:C$10002,C39)","v":0},null,{"$f":"COUNTIF(RELAIS!D$6:D$10002,E39)","v":0},null,{"$f":"COUNTIF(RELAIS!E$6:E$1812, INFO!G39)","v":0}]
[null,{"$f":"COUNTIF(RELAIS!B$6:B$10002,A40)","v":0},null,{"$f":"COUNTIF(RELAIS!C$6:C$10002,C40)","v":0},null,{"$f":"COUNTIF(RELAIS!D$6:D$10002,E40)","v":0},null,{"$f":"COUNTIF(RELAIS!E$6:E$1812, INFO!G40)","v":0}]
[null,{"$f":"COUNTIF(RELAIS!B$6:B$10002,A41)","v":0},null,{"$f":"COUNTIF(RELAIS!C$6:C$10002,C41)","v":0},null,{"$f":"COUNTIF(RELAIS!D$6:D$10002,E41)","v":0},null,{"$f":"COUNTIF(RELAIS!E$6:E$1812, INFO!G41)","v":0}]
[null,{"$f":"COUNTIF(RELAIS!B$6:B$10002,A42)","v":0},null,{"$f":"COUNTIF(RELAIS!C$6:C$10002,C42)","v":0},null,{"$f":"COUNTIF(RELAIS!D$6:D$10002,E42)","v":0},null,{"$f":"COUNTIF(RELAIS!E$6:E$1812, INFO!G42)","v":0}]
[null,{"$f":"COUNTIF(RELAIS!B$6:B$10002,A43)","v":0},null,{"$f":"COUNTIF(RELAIS!C$6:C$10002,C43)","v":0},null,{"$f":"COUNTIF(RELAIS!D$6:D$10002,E43)","v":0},null,{"$f":"COUNTIF(RELAIS!E$6:E$1812, INFO!G43)","v":0}]
[null,{"$f":"COUNTIF(RELAIS!B$6:B$10002,A44)","v":0},null,{"$f":"COUNTIF(RELAIS!C$6:C$10002,C44)","v":0},null,{"$f":"COUNTIF(RELAIS!D$6:D$10002,E44)","v":0},null,{"$f":"COUNTIF(RELAIS!E$6:E$1812, INFO!G44)","v":0}]
[null,{"$f":"COUNTIF(RELAIS!B$6:B$10002,A45)","v":0},null,{"$f":"COUNTIF(RELAIS!C$6:C$10002,C45)","v":0},null,{"$f":"COUNTIF(RELAIS!D$6:D$10002,E45)","v":0},null,{"$f":"COUNTIF(RELAIS!E$6:E$1812, INFO!G45)","v":0}]
[null,{"$f":"COUNTIF(RELAIS!B$6:B$10002,A46)","v":0},null,{"$f":"COUNTIF(RELAIS!C$6:C$10002,C46)","v":0},null,{"$f":"COUNTIF(RELAIS!D$6:D$10002,E46)","v":0},null,{"$f":"COUNTIF(RELAIS!E$6:E$1812, INFO!G46)","v":0}]
[null,{"$f":"COUNTIF(RELAIS!B$6:B$10002,A47)","v":0},null,{"$f":"COUNTIF(RELAIS!C$6:C$10002,C47)","v":0},null,{"$f":"COUNTIF(RELAIS!D$6:D$10002,E47)","v":0},null,{"$f":"COUNTIF(RELAIS!E$6:E$1812, INFO!G47)","v":0}]
[null,{"$f":"COUNTIF(RELAIS!B$6:B$10002,A48)","v":0},null,{"$f":"COUNTIF(RELAIS!C$6:C$10002,C48)","v":0},null,{"$f":"COUNTIF(RELAIS!D$6:D$10002,E48)","v":0},null,{"$f":"COUNTIF(RELAIS!E$6:E$1812, INFO!G48)","v":0}]
[null,{"$f":"COUNTIF(RELAIS!B$6:B$10002,A49)","v":0},null,{"$f":"COUNTIF(RELAIS!C$6:C$10002,C49)","v":0},null,{"$f":"COUNTIF(RELAIS!D$6:D$10002,E49)","v":0},null,{"$f":"COUNTIF(RELAIS!E$6:E$1812, INFO!G49)","v":0}]
[null,{"$f":"COUNTIF(RELAIS!B$6:B$10002,A50)","v":0},null,{"$f":"COUNTIF(RELAIS!C$6:C$10002,C50)","v":0},null,{"$f":"COUNTIF(RELAIS!D$6:D$10002,E50)","v":0},null,{"$f":"COUNTIF(RELAIS!E$6:E$1812, INFO!G50)","v":0}]
[null,{"$f":"COUNTIF(RELAIS!B$6:B$10002,A51)","v":0},null,{"$f":"COUNTIF(RELAIS!C$6:C$10002,C51)","v":0},null,{"$f":"COUNTIF(RELAIS!D$6:D$10002,E51)","v":0},null,{"$f":"COUNTIF(RELAIS!E$6:E$1812, INFO!G51)","v":0}]
[null,{"$f":"COUNTIF(RELAIS!B$6:B$10002,A52)","v":0},null,{"$f":"COUNTIF(RELAIS!C$6:C$10002,C52)","v":0},null,{"$f":"COUNTIF(RELAIS!D$6:D$10002,E52)","v":0},null,{"$f":"COUNTIF(RELAIS!E$6:E$1812, INFO!G52)","v":0}]
[null,{"$f":"COUNTIF(RELAIS!B$6:B$10002,A53)","v":0},null,{"$f":"COUNTIF(RELAIS!C$6:C$10002,C53)","v":0},null,{"$f":"COUNTIF(RELAIS!D$6:D$10002,E53)","v":0},null,{"$f":"COUNTIF(RELAIS!E$6:E$1812, INFO!G53)","v":0}]
[null,{"$f":"COUNTIF(RELAIS!B$6:B$10002,A54)","v":0},null,{"$f":"COUNTIF(RELAIS!C$6:C$10002,C54)","v":0},null,{"$f":"COUNTIF(RELAIS!D$6:D$10002,E54)","v":0},null,{"$f":"COUNTIF(RELAIS!E$6:E$1812, INFO!G54)","v":0}]
[null,{"$f":"COUNTIF(RELAIS!B$6:B$10002,A55)","v":0},null,{"$f":"COUNTIF(RELAIS!C$6:C$10002,C55)","v":0},null,{"$f":"COUNTIF(RELAIS!D$6:D$10002,E55)","v":0},null,{"$f":"COUNTIF(RELAIS!E$6:E$1812, INFO!G55)","v":0}]
[null,{"$f":"COUNTIF(RELAIS!B$6:B$10002,A56)","v":0},null,{"$f":"COUNTIF(RELAIS!C$6:C$10002,C56)","v":0},null,{"$f":"COUNTIF(RELAIS!D$6:D$10002,E56)","v":0},null,{"$f":"COUNTIF(RELAIS!E$6:E$1812, INFO!G56)","v":0}]
[null,{"$f":"COUNTIF(RELAIS!B$6:B$10002,A57)","v":0},null,{"$f":"COUNTIF(RELAIS!C$6:C$10002,C57)","v":0},null,{"$f":"COUNTIF(RELAIS!D$6:D$10002,E57)","v":0},null,{"$f":"COUNTIF(RELAIS!E$6:E$1812, INFO!G57)","v":0}]
[null,{"$f":"COUNTIF(RELAIS!B$6:B$10002,A58)","v":0},null,{"$f":"COUNTIF(RELAIS!C$6:C$10002,C58)","v":0},null,{"$f":"COUNTIF(RELAIS!D$6:D$10002,E58)","v":0},null,{"$f":"COUNTIF(RELAIS!E$6:E$1812, INFO!G58)","v":0}]
[null,{"$f":"COUNTIF(RELAIS!B$6:B$10002,A59)","v":0},null,{"$f":"COUNTIF(RELAIS!C$6:C$10002,C59)","v":0},null,{"$f":"COUNTIF(RELAIS!D$6:D$10002,E59)","v":0},null,{"$f":"COUNTIF(RELAIS!E$6:E$1812, INFO!G59)","v":0}]
[null,{"$f":"COUNTIF(RELAIS!B$6:B$10002,A60)","v":0},null,{"$f":"COUNTIF(RELAIS!C$6:C$10002,C60)","v":0},null,{"$f":"COUNTIF(RELAIS!D$6:D$10002,E60)","v":0},null,{"$f":"COUNTIF(RELAIS!E$6:E$1812, INFO!G60)","v":0}]
[null,{"$f":"COUNTIF(RELAIS!B$6:B$10002,A61)","v":0},null,{"$f":"COUNTIF(RELAIS!C$6:C$10002,C61)","v":0},null,{"$f":"COUNTIF(RELAIS!D$6:D$10002,E61)","v":0},null,{"$f":"COUNTIF(RELAIS!E$6:E$1812, INFO!G61)","v":0}]
[null,{"$f":"COUNTIF(RELAIS!B$6:B$10002,A62)","v":0},null,{"$f":"COUNTIF(RELAIS!C$6:C$10002,C62)","v":0},null,{"$f":"COUNTIF(RELAIS!D$6:D$10002,E62)","v":0},null,{"$f":"COUNTIF(RELAIS!E$6:E$1812, INFO!G62)","v":0}]
[null,{"$f":"COUNTIF(RELAIS!B$6:B$10002,A63)","v":0},null,{"$f":"COUNTIF(RELAIS!C$6:C$10002,C63)","v":0},null,{"$f":"COUNTIF(RELAIS!D$6:D$10002,E63)","v":0},null,{"$f":"COUNTIF(RELAIS!E$6:E$1812, INFO!G63)","v":0}]
[null,{"$f":"COUNTIF(RELAIS!B$6:B$10002,A64)","v":0},null,{"$f":"COUNTIF(RELAIS!C$6:C$10002,C64)","v":0},null,{"$f":"COUNTIF(RELAIS!D$6:D$10002,E64)","v":0},null,{"$f":"COUNTIF(RELAIS!E$6:E$1812, INFO!G64)","v":0}]
[null,{"$f":"COUNTIF(RELAIS!B$6:B$10002,A65)","v":0},null,{"$f":"COUNTIF(RELAIS!C$6:C$10002,C65)","v":0},null,{"$f":"COUNTIF(RELAIS!D$6:D$10002,E65)","v":0},null,{"$f":"COUNTIF(RELAIS!E$6:E$1812, INFO!G65)","v":0}]
[null,{"$f":"COUNTIF(RELAIS!B$6:B$10002,A66)","v":0},null,{"$f":"COUNTIF(RELAIS!C$6:C$10002,C66)","v":0},null,{"$f":"COUNTIF(RELAIS!D$6:D$10002,E66)","v":0},null,{"$f":"COUNTIF(RELAIS!E$6:E$1812, INFO!G66)","v":0}]
[null,{"$f":"COUNTIF(RELAIS!B$6:B$10002,A67)","v":0},null,{"$f":"COUNTIF(RELAIS!C$6:C$10002,C67)","v":0},null,{"$f":"COUNTIF(RELAIS!D$6:D$10002,E67)","v":0},null,{"$f":"COUNTIF(RELAIS!E$6:E$1812, INFO!G67)","v":0}]
[null,{"$f":"COUNTIF(RELAIS!B$6:B$10002,A68)","v":0},null,{"$f":"COUNTIF(RELAIS!C$6:C$10002,C68)","v":0},null,{"$f":"COUNTIF(RELAIS!D$6:D$10002,E68)","v":0},null,{"$f":"COUNTIF(RELAIS!E$6:E$1812, INFO!G68)","v":0}]
[null,null,null,null,null,null,null,{"$f":"COUNTIF(RELAIS!E$6:E$1812, INFO!G69)","v":0}]
[null,null,null,null,null,null,null,{"$f":"COUNTIF(RELAIS!E$6:E$1812, INFO!G70)","v":0}]
[null,null,null,null,null,null,null,{"$f":"COUNTIF(RELAIS!E$6:E$1812, INFO!G71)","v":0}]
[null,null,null,null,null,null,null,{"$f":"COUNTIF(RELAIS!E$6:E$1812, INFO!G72)","v":0}]
[null,null,null,null,null,null,null,{"$f":"COUNTIF(RELAIS!E$6:E$1812, INFO!G73)","v":0}]
[null,null,null,null,null,null,null,{"$f":"COUNTIF(RELAIS!E$6:E$1812, INFO!G74)","v":0}]
[null,null,null,null,null,null,null,{"$f":"COUNTIF(RELAIS!E$6:E$1812, INFO!G75)","v":0}]
[null,null,null,null,null,null,null,{"$f":"COUNTIF(RELAIS!E$6:E$1812, INFO!G76)","v":0}]
[null,null,null,null,null,null,null,{"$f":"COUNTIF(RELAIS!E$6:E$1812, INFO!G77)","v":0}]
[null,null,null,null,null,null,null,{"$f":"COUNTIF(RELAIS!E$6:E$1812, INFO!G78)","v":0}]
[null,null,null,null,null,null,null,{"$f":"COUNTIF(RELAIS!E$6:E$1812, INFO!G79)","v":0}]
[null,null,null,null,null,null,null,{"$f":"COUNTIF(RELAIS!E$6:E$1812, INFO!G80)","v":0}]
[null,null,null,null,null,null,null,{"$f":"COUNTIF(RELAIS!E$6:E$1812, INFO!G81)","v":0}]
[null,null,null,null,null,null,null,{"$f":"COUNTIF(RELAIS!E$6:E$1812, INFO!G82)","v":0}]
[null,null,null,null,null,null,null,{"$f":"COUNTIF(RELAIS!E$6:E$1812, INFO!G83)","v":0}]
[null,null,null,null,null,null,null,{"$f":"COUNTIF(RELAIS!E$6:E$1812, INFO!G84)","v":0}]
[null,null,null,null,null,null,null,{"$f":"COUNTIF(RELAIS!E$6:E$1812, INFO!G85)","v":0}]
[null,null,null,null,null,null,null,{"$f":"COUNTIF(RELAIS!E$6:E$1812, INFO!G86)","v":0}]
[null,null,null,null,null,null,null,{"$f":"COUNTIF(RELAIS!E$6:E$1812, INFO!G87)","v":0}]
[null,null,null,null,null,null,null,{"$f":"COUNTIF(RELAIS!E$6:E$1812, INFO!G88)","v":0}]
[null,null,null,null,null,null,null,{"$f":"COUNTIF(RELAIS!E$6:E$1812, INFO!G89)","v":0}]
[null,null,null,null,null,null,null,{"$f":"COUNTIF(RELAIS!E$6:E$1812, INFO!G90)","v":0}]
[null,null,null,null,null,null,null,{"$f":"COUNTIF(RELAIS!E$6:E$1812, INFO!G91)","v":0}]
[null,null,null,null,null,null,null,{"$f":"COUNTIF(RELAIS!E$6:E$1812, INFO!G92)","v":0}]
[null,null,null,null,null,null,null,{"$f":"COUNTIF(RELAIS!E$6:E$1812, INFO!G93)","v":0}]
[null,null,null,null,null,null,null,{"$f":"COUNTIF(RELAIS!E$6:E$1812, INFO!G94)","v":0}]
[null,null,null,null,null,null,null,{"$f":"COUNTIF(RELAIS!E$6:E$1812, INFO!G95)","v":0}]
[null,null,null,null,null,null,null,{"$f":"COUNTIF(RELAIS!E$6:E$1812, INFO!G96)","v":0}]
[null,null,null,null,null,null,null,{"$f":"COUNTIF(RELAIS!E$6:E$1812, INFO!G97)","v":0}]
[null,null,null,null,null,null,null,{"$f":"COUNTIF(RELAIS!E$6:E$1812, INFO!G98)","v":0}]
[null,null,null,null,null,null,null,{"$f":"COUNTIF(RELAIS!E$6:E$1812, INFO!G99)","v":0}]
[null,null,null,null,null,null,null,{"$f":"COUNTIF(RELAIS!E$6:E$1812, INFO!G100)","v":0}]
[null,null,null,null,null,null,null,{"$f":"COUNTIF(RELAIS!E$6:E$1812, INFO!G101)","v":0}]
[null,null,null,null,null,null,null,{"$f":"COUNTIF(RELAIS!E$6:E$1812, INFO!G102)","v":0}]
[null,null,null,null,null,null,null,{"$f":"COUNTIF(RELAIS!E$6:E$1812, INFO!G103)","v":0}]
[null,null,null,null,null,null,null,{"$f":"COUNTIF(RELAIS!E$6:E$1812, INFO!G104)","v":0}]
[null,null,null,null,null,null,null,{"$f":"COUNTIF(RELAIS!E$6:E$1812, INFO!G105)","v":0}]
[null,null,null,null,null,null,null,{"$f":"COUNTIF(RELAIS!E$6:E$1812, INFO!G106)","v":0}]
[null,null,null,null,null,null,null,{"$f":"COUNTIF(RELAIS!E$6:E$1812, INFO!G107)","v":0}]
[null,null,null,null,null,null,null,{"$f":"COUNTIF(RELAIS!E$6:E$1812, INFO!G108)","v":0}]
[null,null,null,null,null,null,null,{"$f":"COUNTIF(RELAIS!E$6:E$1812, INFO!G109)","v":0}]
[null,null,null,null,null,null,null,{"$f":"COUNTIF(RELAIS!E$6:E$1812, INFO!G110)","v":0}]
[null,null,null,null,null,null,null,{"$f":"COUNTIF(RELAIS!E$6:E$1812, INFO!G111)","v":0}]
[null,null,null,null,null,null,null,{"$f":"COUNTIF(RELAIS!E$6:E$1812, INFO!G112)","v":0}]
[null,null,null,null,null,null,null,{"$f":"COUNTIF(RELAIS!E$6:E$1812, INFO!G113)","v":0}]
[null,null,null,null,null,null,null,{"$f":"COUNTIF(RELAIS!E$6:E$1812, INFO!G114)","v":0}]
[null,null,null,null,null,null,null,{"$f":"COUNTIF(RELAIS!E$6:E$1812, INFO!G115)","v":0}]
[null,null,null,null,null,null,null,{"$f":"COUNTIF(RELAIS!E$6:E$1812, INFO!G116)","v":0}]
[null,null,null,null,null,null,null,{"$f":"COUNTIF(RELAIS!E$6:E$1812, INFO!G117)","v":0}]
[null,null,null,null,null,null,null,{"$f":"COUNTIF(RELAIS!E$6:E$1812, INFO!G118)","v":0}]
[null,null,null,null,null,null,null,{"$f":"COUNTIF(RELAIS!E$6:E$1812, INFO!G119)","v":0}]
[null,null,null,null,null,null,null,{"$f":"COUNTIF(RELAIS!E$6:E$1812, INFO!G120)","v":0}]
[null,null,null,null,null,null,null,{"$f":"COUNTIF(RELAIS!E$6:E$1812, INFO!G121)","v":0}]
[null,null,null,null,null,null,null,{"$f":"COUNTIF(RELAIS!E$6:E$1812, INFO!G122)","v":0}]
[null,null,null,null,null,null,null,{"$f":"COUNTIF(RELAIS!E$6:E$1812, INFO!G123)","v":0}]
[null,null,null,null,null,null,null,{"$f":"COUNTIF(RELAIS!E$6:E$1812, INFO!G124)","v":0}]
[null,null,null,null,null,null,null,{"$f":"COUNTIF(RELAIS!E$6:E$1812, INFO!G125)","v":0}]
[null,null,null,null,null,null,null,{"$f":"COUNTIF(RELAIS!E$6:E$1812, INFO!G126)","v":0}]
[null,null,null,null,null,null,null,{"$f":"COUNTIF(RELAIS!E$6:E$1812, INFO!G127)","v":0}]
[null,null,null,null,null,null,null,{"$f":"COUNTIF(RELAIS!E$6:E$1812, INFO!G128)","v":0}]
[null,null,null,null,null,null,null,{"$f":"COUNTIF(RELAIS!E$6:E$1812, INFO!G129)","v":0}]
[null,null,null,null,null,null,null,{"$f":"COUNTIF(RELAIS!E$6:E$1812, INFO!G130)","v":0}]
[null,null,null,null,null,null,null,{"$f":"COUNTIF(RELAIS!E$6:E$1812, INFO!G131)","v":0}]
[null,null,null,null,null,null,null,{"$f":"COUNTIF(RELAIS!E$6:E$1812, INFO!G132)","v":0}]
[null,null,null,null,null,null,null,{"$f":"COUNTIF(RELAIS!E$6:E$1812, INFO!G133)","v":0}]
[null,null,null,null,null,null,null,{"$f":"COUNTIF(RELAIS!E$6:E$1812, INFO!G134)","v":0}]
[null,null,null,null,null,null,null,{"$f":"COUNTIF(RELAIS!E$6:E$1812, INFO!G135)","v":0}]
[null,null,null,null,null,null,null,{"$f":"COUNTIF(RELAIS!E$6:E$1812, INFO!G136)","v":0}]
[null,null,null,null,null,null,null,{"$f":"COUNTIF(RELAIS!E$6:E$1812, INFO!G137)","v":0}]
[null,null,null,null,null,null,null,{"$f":"COUNTIF(RELAIS!E$6:E$1812, INFO!G138)","v":0}]
[null,null,null,null,null,null,null,{"$f":"COUNTIF(RELAIS!E$6:E$1812, INFO!G139)","v":0}]
[null,null,null,null,null,null,null,{"$f":"COUNTIF(RELAIS!E$6:E$1812, INFO!G140)","v":0}]
[null,null,null,null,null,null,null,{"$f":"COUNTIF(RELAIS!E$6:E$1812, INFO!G141)","v":0}]
[null,null,null,null,null,null,null,{"$f":"COUNTIF(RELAIS!E$6:E$1812, INFO!G142)","v":0}]
[null,null,null,null,null,null,null,{"$f":"COUNTIF(RELAIS!E$6:E$1812, INFO!G143)","v":0}]
[null,null,null,null,null,null,null,{"$f":"COUNTIF(RELAIS!E$6:E$1812, INFO!G144)","v":0}]
[null,null,null,null,null,null,null,{"$f":"COUNTIF(RELAIS!E$6:E$1812, INFO!G145)","v":0}]
[null,null,null,null,null,null,null,{"$f":"COUNTIF(RELAIS!E$6:E$1812, INFO!G146)","v":0}]
[null,null,null,null,null,null,null,{"$f":"COUNTIF(RELAIS!E$6:E$1812, INFO!G147)","v":0}]
[null,null,null,null,null,null,null,{"$f":"COUNTIF(RELAIS!E$6:E$1812, INFO!G148)","v":0}]
[null,null,null,null,null,null,null,{"$f":"COUNTIF(RELAIS!E$6:E$1812, INFO!G149)","v":0}]
[null,null,null,null,null,null,null,{"$f":"COUNTIF(RELAIS!E$6:E$1812, INFO!G150)","v":0}]
[null,null,null,null,null,null,null,{"$f":"COUNTIF(RELAIS!E$6:E$1812, INFO!G151)","v":0}]
[null,null,null,null,null,null,null,{"$f":"COUNTIF(RELAIS!E$6:E$1812, INFO!G152)","v":0}]
[null,null,null,null,null,null,null,{"$f":"COUNTIF(RELAIS!E$6:E$1812, INFO!G153)","v":0}]
[null,null,null,null,null,null,null,{"$f":"COUNTIF(RELAIS!E$6:E$1812, INFO!G154)","v":0}]
[null,null,null,null,null,null,null,{"$f":"COUNTIF(RELAIS!E$6:E$1812, INFO!G155)","v":0}]
[null,null,null,null,null,null,null,{"$f":"COUNTIF(RELAIS!E$6:E$1812, INFO!G156)","v":0}]
[null,null,null,null,null,null,null,{"$f":"COUNTIF(RELAIS!E$6:E$1812, INFO!G157)","v":0}]
[null,null,null,null,null,null,null,{"$f":"COUNTIF(RELAIS!E$6:E$1812, INFO!G158)","v":0}]
[null,null,null,null,null,null,null,{"$f":"COUNTIF(RELAIS!E$6:E$1812, INFO!G159)","v":0}]
[null,null,null,null,null,null,null,{"$f":"COUNTIF(RELAIS!E$6:E$1812, INFO!G160)","v":0}]
[null,null,null,null,null,null,null,{"$f":"COUNTIF(RELAIS!E$6:E$1812, INFO!G161)","v":0}]
[null,null,null,null,null,null,null,{"$f":"COUNTIF(RELAIS!E$6:E$1812, INFO!G162)","v":0}]
[null,null,null,null,null,null,null,{"$f":"COUNTIF(RELAIS!E$6:E$1812, INFO!G163)","v":0}]
[null,null,null,null,null,null,null,{"$f":"COUNTIF(RELAIS!E$6:E$1812, INFO!G164)","v":0}]
[null,null,null,null,null,null,null,{"$f":"COUNTIF(RELAIS!E$6:E$1812, INFO!G165)","v":0}]
[null,null,null,null,null,null,null,{"$f":"COUNTIF(RELAIS!E$6:E$1812, INFO!G166)","v":0}]
[null,null,null,null,null,null,null,{"$f":"COUNTIF(RELAIS!E$6:E$1812, INFO!G167)","v":0}]
[null,null,null,null,null,null,null,{"$f":"COUNTIF(RELAIS!E$6:E$1812, INFO!G168)","v":0}]
[null,null,null,null,null,null,null,{"$f":"COUNTIF(RELAIS!E$6:E$1812, INFO!G169)","v":0}]
[null,null,null,null,null,null,null,{"$f":"COUNTIF(RELAIS!E$6:E$1812, INFO!G170)","v":0}]
[null,null,null,null,null,null,null,{"$f":"COUNTIF(RELAIS!E$6:E$1812, INFO!G171)","v":0}]
[null,null,null,null,null,null,null,{"$f":"COUNTIF(RELAIS!E$6:E$1812, INFO!G172)","v":0}]
[null,null,null,null,null,null,null,{"$f":"COUNTIF(RELAIS!E$6:E$1812, INFO!G173)","v":0}]
[null,null,null,null,null,null,null,{"$f":"COUNTIF(RELAIS!E$6:E$1812, INFO!G174)","v":0}]
[null,null,null,null,null,null,null,{"$f":"COUNTIF(RELAIS!E$6:E$1812, INFO!G175)","v":0}]
[null,null,null,null,null,null,null,{"$f":"COUNTIF(RELAIS!E$6:E$1812, INFO!G176)","v":0}]
[null,null,null,null,null,null,null,{"$f":"COUNTIF(RELAIS!E$6:E$1812, INFO!G177)","v":0}]
[null,null,null,null,null,null,null,{"$f":"COUNTIF(RELAIS!E$6:E$1812, INFO!G178)","v":0}]
[null,null,null,null,null,null,null,{"$f":"COUNTIF(RELAIS!E$6:E$1812, INFO!G179)","v":0}]
[null,null,null,null,null,null,null,{"$f":"COUNTIF(RELAIS!E$6:E$1812, INFO!G180)","v":0}]
[null,null,null,null,null,null,null,{"$f":"COUNTIF(RELAIS!E$6:E$1812, INFO!G181)","v":0}]
[null,null,null,null,null,null,null,{"$f":"COUNTIF(RELAIS!E$6:E$1812, INFO!G182)","v":0}]
[null,null,null,null,null,null,null,{"$f":"COUNTIF(RELAIS!E$6:E$1812, INFO!G183)","v":0}]
[null,null,null,null,null,null,null,{"$f":"COUNTIF(RELAIS!E$6:E$1812, INFO!G184)","v":0}]
[null,null,null,null,null,null,null,{"$f":"COUNTIF(RELAIS!E$6:E$1812, INFO!G185)","v":0}]
[null,null,null,null,null,null,null,{"$f":"COUNTIF(RELAIS!E$6:E$1812, INFO!G186)","v":0}]
[null,null,null,null,null,null,null,{"$f":"COUNTIF(RELAIS!E$6:E$1812, INFO!G187)","v":0}]
[null,null,null,null,null,null,null,{"$f":"COUNTIF(RELAIS!E$6:E$1812, INFO!G188)","v":0}]
[null,null,null,null,null,null,null,{"$f":"COUNTIF(RELAIS!E$6:E$1812, INFO!G189)","v":0}]
[null,null,null,null,null,null,null,{"$f":"COUNTIF(RELAIS!E$6:E$1812, INFO!G190)","v":0}]
[null,null,null,null,null,null,null,{"$f":"COUNTIF(RELAIS!E$6:E$1812, INFO!G191)","v":0}]
[null,null,null,null,null,null,null,{"$f":"COUNTIF(RELAIS!E$6:E$1812, INFO!G192)","v":0}]
[null,null,null,null,null,null,null,{"$f":"COUNTIF(RELAIS!E$6:E$1812, INFO!G193)","v":0}]
[null,null,null,null,null,null,null,{"$f":"COUNTIF(RELAIS!E$6:E$1812, INFO!G194)","v":0}]
[null,null,null,null,null,null,null,{"$f":"COUNTIF(RELAIS!E$6:E$1812, INFO!G195)","v":0}]
[null,null,null,null,null,null,null,{"$f":"COUNTIF(RELAIS!E$6:E$1812, INFO!G196)","v":0}]
[null,null,null,null,null,null,null,{"$f":"COUNTIF(RELAIS!E$6:E$1812, INFO!G197)","v":0}]
[null,null,null,null,null,null,null,{"$f":"COUNTIF(RELAIS!E$6:E$1812, INFO!G198)","v":0}]
[null,null,null,null,null,null,null,{"$f":"COUNTIF(RELAIS!E$6:E$1812, INFO!G199)","v":0}]
[null,null,null,null,null,null,null,{"$f":"COUNTIF(RELAIS!E$6:E$1812, INFO!G200)","v":0}]
[null,null,null,null,null,null,null,{"$f":"COUNTIF(RELAIS!E$6:E$1812, INFO!G201)","v":0}]
[null,null,null,null,null,null,null,{"$f":"COUNTIF(RELAIS!E$6:E$1812, INFO!G202)","v":0}]
[null,null,null,null,null,null,null,{"$f":"COUNTIF(RELAIS!E$6:E$1812, INFO!G203)","v":0}]
[null,null,null,null,null,null,null,{"$f":"COUNTIF(RELAIS!E$6:E$1812, INFO!G204)","v":0}]
[null,null,null,null,null,null,null,{"$f":"COUNTIF(RELAIS!E$6:E$1812, INFO!G205)","v":0}]
[null,null,null,null,null,null,null,{"$f":"COUNTIF(RELAIS!E$6:E$1812, INFO!G206)","v":0}]
[null,null,null,null,null,null,null,{"$f":"COUNTIF(RELAIS!E$6:E$1812, INFO!G207)","v":0}]
[null,null,null,null,null,null,null,{"$f":"COUNTIF(RELAIS!E$6:E$1812, INFO!G208)","v":0}]
[null,null,null,null,null,null,null,{"$f":"COUNTIF(RELAIS!E$6:E$1812, INFO!G209)","v":0}]
[null,null,null,null,null,null,null,{"$f":"COUNTIF(RELAIS!E$6:E$1812, INFO!G210)","v":0}]
[null,null,null,null,null,null,null,{"$f":"COUNTIF(RELAIS!E$6:E$1812, INFO!G211)","v":0}]
[null,null,null,null,null,null,null,{"$f":"COUNTIF(RELAIS!E$6:E$1812, INFO!G212)","v":0}]
[null,null,null,null,null,null,null,{"$f":"COUNTIF(RELAIS!E$6:E$1812, INFO!G213)","v":0}]
[null,null,null,null,null,null,null,{"$f":"COUNTIF(RELAIS!E$6:E$1812, INFO!G214)","v":0}]
[null,null,null,null,null,null,null,{"$f":"COUNTIF(RELAIS!E$6:E$1812, INFO!G215)","v":0}]
[null,null,null,null,null,null,null,{"$f":"COUNTIF(RELAIS!E$6:E$1812, INFO!G216)","v":0}]
[null,null,null,null,null,null,null,{"$f":"COUNTIF(RELAIS!E$6:E$1812, INFO!G217)","v":0}]
[null,null,null,null,null,null,null,{"$f":"COUNTIF(RELAIS!E$6:E$1812, INFO!G218)","v":0}]
[null,null,null,null,null,null,null,{"$f":"COUNTIF(RELAIS!E$6:E$1812, INFO!G219)","v":0}]
[null,null,null,null,null,null,null,{"$f":"COUNTIF(RELAIS!E$6:E$1812, INFO!G220)","v":0}]
[null,null,null,null,null,null,null,{"$f":"COUNTIF(RELAIS!E$6:E$1812, INFO!G221)","v":0}]
[null,null,null,null,null,null,null,{"$f":"COUNTIF(RELAIS!E$6:E$1812, INFO!G222)","v":0}]
[null,null,null,null,null,null,null,{"$f":"COUNTIF(RELAIS!E$6:E$1812, INFO!G223)","v":0}]
[null,null,null,null,null,null,null,{"$f":"COUNTIF(RELAIS!E$6:E$1812, INFO!G224)","v":0}]
[null,null,null,null,null,null,null,{"$f":"COUNTIF(RELAIS!E$6:E$1812, INFO!G225)","v":0}]
[null,null,null,null,null,null,null,{"$f":"COUNTIF(RELAIS!E$6:E$1812, INFO!G226)","v":0}]
[null,null,null,null,null,null,null,{"$f":"COUNTIF(RELAIS!E$6:E$1812, INFO!G227)","v":0}]
[null,null,null,null,null,null,null,{"$f":"COUNTIF(RELAIS!E$6:E$1812, INFO!G228)","v":0}]
[null,null,null,null,null,null,null,{"$f":"COUNTIF(RELAIS!E$6:E$1812, INFO!G229)","v":0}]
[null,null,null,null,null,null,null,{"$f":"COUNTIF(RELAIS!E$6:E$1812, INFO!G230)","v":0}]
[null,null,null,null,null,null,null,{"$f":"COUNTIF(RELAIS!E$6:E$1812, INFO!G231)","v":0}]
[null,null,null,null,null,null,null,{"$f":"COUNTIF(RELAIS!E$6:E$1812, INFO!G232)","v":0}]
[null,null,null,null,null,null,null,{"$f":"COUNTIF(RELAIS!E$6:E$1812, INFO!G233)","v":0}]
[null,null,null,null,null,null,null,{"$f":"COUNTIF(RELAIS!E$6:E$1812, INFO!G234)","v":0}]
[null,null,null,null,null,null,null,{"$f":"COUNTIF(RELAIS!E$6:E$1812, INFO!G235)","v":0}]
[null,null,null,null,null,null,null,{"$f":"COUNTIF(RELAIS!E$6:E$1812, INFO!G236)","v":0}]
[null,null,null,null,null,null,null,{"$f":"COUNTIF(RELAIS!E$6:E$1812, INFO!G237)","v":0}]
[null,null,null,null,null,null,null,{"$f":"COUNTIF(RELAIS!E$6:E$1812, INFO!G238)","v":0}]
[null,null,null,null,null,null,null,{"$f":"COUNTIF(RELAIS!E$6:E$1812, INFO!G239)","v":0}]
[null,null,null,null,null,null,null,{"$f":"COUNTIF(RELAIS!E$6:E$1812, INFO!G240)","v":0}]
[null,null,null,null,null,null,null,{"$f":"COUNTIF(RELAIS!E$6:E$1812, INFO!G241)","v":0}]
[null,null,null,null,null,null,null,{"$f":"COUNTIF(RELAIS!E$6:E$1812, INFO!G242)","v":0}]
[null,null,null,null,null,null,null,{"$f":"COUNTIF(RELAIS!E$6:E$1812, INFO!G243)","v":0}]
[null,null,null,null,null,null,null,{"$f":"COUNTIF(RELAIS!E$6:E$1812, INFO!G244)","v":0}]
[null,null,null,null,null,null,null,{"$f":"COUNTIF(RELAIS!E$6:E$1812, INFO!G245)","v":0}]
[null,null,null,null,null,null,null,{"$f":"COUNTIF(RELAIS!E$6:E$1812, INFO!G246)","v":0}]
[null,null,null,null,null,null,null,{"$f":"COUNTIF(RELAIS!E$6:E$1812, INFO!G247)","v":0}]
[null,null,null,null,null,null,null,{"$f":"COUNTIF(RELAIS!E$6:E$1812, INFO!G248)","v":0}]
[null,null,null,null,null,null,null,{"$f":"COUNTIF(RELAIS!E$6:E$1812, INFO!G249)","v":0}]
[null,null,null,null,null,null,null,{"$f":"COUNTIF(RELAIS!E$6:E$1812, INFO!G250)","v":0}]
[null,null,null,null,null,null,null,{"$f":"COUNTIF(RELAIS!E$6:E$1812, INFO!G251)","v":0}]
[null,null,null,null,null,null,null,{"$f":"COUNTIF(RELAIS!E$6:E$1812, INFO!G252)","v":0}]
[null,null,null,null,null,null,null,{"$f":"COUNTIF(RELAIS!E$6:E$1812, INFO!G253)","v":0}]
[null,null,null,null,null,null,null,{"$f":"COUNTIF(RELAIS!E$6:E$1812, INFO!G254)","v":0}]
[null,null,null,null,null,null,null,{"$f":"COUNTIF(RELAIS!E$6:E$1812, INFO!G255)","v":0}]
[null,null,null,null,null,null,null,{"$f":"COUNTIF(RELAIS!E$6:E$1812, INFO!G256)","v":0}]
[null,null,null,null,null,null,null,{"$f":"COUNTIF(RELAIS!E$6:E$1812, INFO!G257)","v":0}]
[null,null,null,null,null,null,null,{"$f":"COUNTIF(RELAIS!E$6:E$1812, INFO!G258)","v":0}]
[null,null,null,null,null,null,null,{"$f":"COUNTIF(RELAIS!E$6:E$1812, INFO!G259)","v":0}]
[null,null,null,null,null,null,null,{"$f":"COUNTIF(RELAIS!E$6:E$1812, INFO!G260)","v":0}]
[null,null,null,null,null,null,null,{"$f":"COUNTIF(RELAIS!E$6:E$1812, INFO!G261)","v":0}]
[null,null,null,null,null,null,null,{"$f":"COUNTIF(RELAIS!E$6:E$1812, INFO!G262)","v":0}]
[null,null,null,null,null,null,null,{"$f":"COUNTIF(RELAIS!E$6:E$1812, INFO!G263)","v":0}]
[null,null,null,null,null,null,null,{"$f":"COUNTIF(RELAIS!E$6:E$1812, INFO!G264)","v":0}]
[null,null,null,null,null,null,null,{"$f":"COUNTIF(RELAIS!E$6:E$1812, INFO!G265)","v":0}]
[null,null,null,null,null,null,null,{"$f":"COUNTIF(RELAIS!E$6:E$1812, INFO!G266)","v":0}]
[null,null,null,null,null,null,null,{"$f":"COUNTIF(RELAIS!E$6:E$1812, INFO!G267)","v":0}]
[null,null,null,null,null,null,null,{"$f":"COUNTIF(RELAIS!E$6:E$1812, INFO!G268)","v":0}]
[null,null,null,null,null,null,null,{"$f":"COUNTIF(RELAIS!E$6:E$1812, INFO!G269)","v":0}]
[null,null,null,null,null,null,null,{"$f":"COUNTIF(RELAIS!E$6:E$1812, INFO!G270)","v":0}]
[null,null,null,null,null,null,null,{"$f":"COUNTIF(RELAIS!E$6:E$1812, INFO!G271)","v":0}]
[null,null,null,null,null,null,null,{"$f":"COUNTIF(RELAIS!E$6:E$1812, INFO!G272)","v":0}]
[null,null,null,null,null,null,null,{"$f":"COUNTIF(RELAIS!E$6:E$1812, INFO!G273)","v":0}]
[null,null,null,null,null,null,null,{"$f":"COUNTIF(RELAIS!E$6:E$1812, INFO!G274)","v":0}]
[null,null,null,null,null,null,null,{"$f":"COUNTIF(RELAIS!E$6:E$1812, INFO!G275)","v":0}]
[null,null,null,null,null,null,null,{"$f":"COUNTIF(RELAIS!E$6:E$1812, INFO!G276)","v":0}]
[null,null,null,null,null,null,null,{"$f":"COUNTIF(RELAIS!E$6:E$1812, INFO!G277)","v":0}]
[null,null,null,null,null,null,null,{"$f":"COUNTIF(RELAIS!E$6:E$1812, INFO!G278)","v":0}]
[null,null,null,null,null,null,null,{"$f":"COUNTIF(RELAIS!E$6:E$1812, INFO!G279)","v":0}]
[null,null,null,null,null,null,null,{"$f":"COUNTIF(RELAIS!E$6:E$1812, INFO!G280)","v":0}]
[null,null,null,null,null,null,null,{"$f":"COUNTIF(RELAIS!E$6:E$1812, INFO!G281)","v":0}]
[null,null,null,null,null,null,null,{"$f":"COUNTIF(RELAIS!E$6:E$1812, INFO!G282)","v":0}]
[null,null,null,null,null,null,null,{"$f":"COUNTIF(RELAIS!E$6:E$1812, INFO!G283)","v":0}]
[null,null,null,null,null,null,null,{"$f":"COUNTIF(RELAIS!E$6:E$1812, INFO!G284)","v":0}]
[null,null,null,null,null,null,null,{"$f":"COUNTIF(RELAIS!E$6:E$1812, INFO!G285)","v":0}]
[null,null,null,null,null,null,null,{"$f":"COUNTIF(RELAIS!E$6:E$1812, INFO!G286)","v":0}]
[null,null,null,null,null,null,null,{"$f":"COUNTIF(RELAIS!E$6:E$1812, INFO!G287)","v":0}]
[null,null,null,null,null,null,null,{"$f":"COUNTIF(RELAIS!E$6:E$1812, INFO!G288)","v":0}]
[null,null,null,null,null,null,null,{"$f":"COUNTIF(RELAIS!E$6:E$1812, INFO!G289)","v":0}]
[null,null,null,null,null,null,null,{"$f":"COUNTIF(RELAIS!E$6:E$1812, INFO!G290)","v":0}]
[null,null,null,null,null,null,null,{"$f":"COUNTIF(RELAIS!E$6:E$1812, INFO!G291)","v":0}]
[null,null,null,null,null,null,null,{"$f":"COUNTIF(RELAIS!E$6:E$1812, INFO!G292)","v":0}]
[null,null,null,null,null,null,null,{"$f":"COUNTIF(RELAIS!E$6:E$1812, INFO!G293)","v":0}]
[null,null,null,null,null,null,null,{"$f":"COUNTIF(RELAIS!E$6:E$1812, INFO!G294)","v":0}]
[null,null,null,null,null,null,null,{"$f":"COUNTIF(RELAIS!E$6:E$1812, INFO!G295)","v":0}]
[null,null,null,null,null,null,null,{"$f":"COUNTIF(RELAIS!E$6:E$1812, INFO!G296)","v":0}]
[null,null,null,null,null,null,null,{"$f":"COUNTIF(RELAIS!E$6:E$1812, INFO!G297)","v":0}]
[null,null,null,null,null,null,null,{"$f":"COUNTIF(RELAIS!E$6:E$1812, INFO!G298)","v":0}]
[null,null,null,null,null,null,null,{"$f":"COUNTIF(RELAIS!E$6:E$1812, INFO!G299)","v":0}]
[null,null,null,null,null,null,null,{"$f":"COUNTIF(RELAIS!E$6:E$1812, INFO!G300)","v":0}]
[null,null,null,null,null,null,null,{"$f":"COUNTIF(RELAIS!E$6:E$1812, INFO!G301)","v":0}]
[null,null,null,null,null,null,null,{"$f":"COUNTIF(RELAIS!E$6:E$1812, INFO!G302)","v":0}]
[null,null,null,null,null,null,null,{"$f":"COUNTIF(RELAIS!E$6:E$1812, INFO!G303)","v":0}]
[null,null,null,null,null,null,null,{"$f":"COUNTIF(RELAIS!E$6:E$1812, INFO!G304)","v":0}]
[null,null,null,null,null,null,null,{"$f":"COUNTIF(RELAIS!E$6:E$1812, INFO!G305)","v":0}]
[null,null,null,null,null,null,null,{"$f":"COUNTIF(RELAIS!E$6:E$1812, INFO!G306)","v":0}]
[null,null,null,null,null,null,null,{"$f":"COUNTIF(RELAIS!E$6:E$1812, INFO!G307)","v":0}]
[null,null,null,null,null,null,null,{"$f":"COUNTIF(RELAIS!E$6:E$1812, INFO!G308)","v":0}]
[null,null,null,null,null,null,null,{"$f":"COUNTIF(RELAIS!E$6:E$1812, INFO!G309)","v":0}]
[null,null,null,null,null,null,null,{"$f":"COUNTIF(RELAIS!E$6:E$1812, INFO!G310)","v":0}]
[null,null,null,null,null,null,null,{"$f":"COUNTIF(RELAIS!E$6:E$1812, INFO!G311)","v":0}]
[null,null,null,null,null,null,null,{"$f":"COUNTIF(RELAIS!E$6:E$1812, INFO!G312)","v":0}]
[null,null,null,null,null,null,null,{"$f":"COUNTIF(RELAIS!E$6:E$1812, INFO!G313)","v":0}]
[null,null,null,null,null,null,null,{"$f":"COUNTIF(RELAIS!E$6:E$1812, INFO!G314)","v":0}]
[null,null,null,null,null,null,null,{"$f":"COUNTIF(RELAIS!E$6:E$1812, INFO!G315)","v":0}]
[null,null,null,null,null,null,null,{"$f":"COUNTIF(RELAIS!E$6:E$1812, INFO!G316)","v":0}]
[null,null,null,null,null,null,null,{"$f":"COUNTIF(RELAIS!E$6:E$1812, INFO!G317)","v":0}]
[null,null,null,null,null,null,null,{"$f":"COUNTIF(RELAIS!E$6:E$1812, INFO!G318)","v":0}]
[null,null,null,null,null,null,null,{"$f":"COUNTIF(RELAIS!E$6:E$1812, INFO!G319)","v":0}]
[null,null,null,null,null,null,null,{"$f":"COUNTIF(RELAIS!E$6:E$1812, INFO!G320)","v":0}]
[null,null,null,null,null,null,null,{"$f":"COUNTIF(RELAIS!E$6:E$1812, INFO!G321)","v":0}]
[null,null,null,null,null,null,null,{"$f":"COUNTIF(RELAIS!E$6:E$1812, INFO!G322)","v":0}]
[null,null,null,null,null,null,null,{"$f":"COUNTIF(RELAIS!E$6:E$1812, INFO!G323)","v":0}]
[null,null,null,null,null,null,null,{"$f":"COUNTIF(RELAIS!E$6:E$1812, INFO!G324)","v":0}]
[null,null,null,null,null,null,null,{"$f":"COUNTIF(RELAIS!E$6:E$1812, INFO!G325)","v":0}]
[null,null,null,null,null,null,null,{"$f":"COUNTIF(RELAIS!E$6:E$1812, INFO!G326)","v":0}]
[null,null,null,null,null,null,null,{"$f":"COUNTIF(RELAIS!E$6:E$1812, INFO!G327)","v":0}]
[null,null,null,null,null,null,null,{"$f":"COUNTIF(RELAIS!E$6:E$1812, INFO!G328)","v":0}]
[null,null,null,null,null,null,null,{"$f":"COUNTIF(RELAIS!E$6:E$1812, INFO!G329)","v":0}]
[null,null,null,null,null,null,null,{"$f":"COUNTIF(RELAIS!E$6:E$1812, INFO!G330)","v":0}]
[null,null,null,null,null,null,null,{"$f":"COUNTIF(RELAIS!E$6:E$1812, INFO!G331)","v":0}]
[null,null,null,null,null,null,null,{"$f":"COUNTIF(RELAIS!E$6:E$1812, INFO!G332)","v":0}]
[null,null,null,null,null,null,null,{"$f":"COUNTIF(RELAIS!E$6:E$1812, INFO!G333)","v":0}]
[null,null,null,null,null,null,null,{"$f":"COUNTIF(RELAIS!E$6:E$1812, INFO!G334)","v":0}]
[null,null,null,null,null,null,null,{"$f":"COUNTIF(RELAIS!E$6:E$1812, INFO!G335)","v":0}]
[null,null,null,null,null,null,null,{"$f":"COUNTIF(RELAIS!E$6:E$1812, INFO!G336)","v":0}]
[null,null,null,null,null,null,null,{"$f":"COUNTIF(RELAIS!E$6:E$1812, INFO!G337)","v":0}]
[null,null,null,null,null,null,null,{"$f":"COUNTIF(RELAIS!E$6:E$1812, INFO!G338)","v":0}]
[null,null,null,null,null,null,null,{"$f":"COUNTIF(RELAIS!E$6:E$1812, INFO!G339)","v":0}]
[null,null,null,null,null,null,null,{"$f":"COUNTIF(RELAIS!E$6:E$1812, INFO!G340)","v":0}]
[null,null,null,null,null,null,null,{"$f":"COUNTIF(RELAIS!E$6:E$1812, INFO!G341)","v":0}]
[null,null,null,null,null,null,null,{"$f":"COUNTIF(RELAIS!E$6:E$1812, INFO!G342)","v":0}]
[null,null,null,null,null,null,null,{"$f":"COUNTIF(RELAIS!E$6:E$1812, INFO!G343)","v":0}]
[null,null,null,null,null,null,null,{"$f":"COUNTIF(RELAIS!E$6:E$1812, INFO!G344)","v":0}]
[null,null,null,null,null,null,null,{"$f":"COUNTIF(RELAIS!E$6:E$1812, INFO!G345)","v":0}]
[null,null,null,null,null,null,null,{"$f":"COUNTIF(RELAIS!E$6:E$1812, INFO!G346)","v":0}]
[null,null,null,null,null,null,null,{"$f":"COUNTIF(RELAIS!E$6:E$1812, INFO!G347)","v":0}]
[null,null,null,null,null,null,null,{"$f":"COUNTIF(RELAIS!E$6:E$1812, INFO!G348)","v":0}]
[null,null,null,null,null,null,null,{"$f":"COUNTIF(RELAIS!E$6:E$1812, INFO!G349)","v":0}]
[null,null,null,null,null,null,null,{"$f":"COUNTIF(RELAIS!E$6:E$1812, INFO!G350)","v":0}]
[null,null,null,null,null,null,null,{"$f":"COUNTIF(RELAIS!E$6:E$1812, INFO!G351)","v":0}]
[null,null,null,null,null,null,null,{"$f":"COUNTIF(RELAIS!E$6:E$1812, INFO!G352)","v":0}]
[null,null,null,null,null,null,null,{"$f":"COUNTIF(RELAIS!E$6:E$1812, INFO!G353)","v":0}]
[null,null,null,null,null,null,null,{"$f":"COUNTIF(RELAIS!E$6:E$1812, INFO!G354)","v":0}]
[null,null,null,null,null,null,null,{"$f":"COUNTIF(RELAIS!E$6:E$1812, INFO!G355)","v":0}]
[null,null,null,null,null,null,null,{"$f":"COUNTIF(RELAIS!E$6:E$1812, INFO!G356)","v":0}]
[null,null,null,null,null,null,null,{"$f":"COUNTIF(RELAIS!E$6:E$1812, INFO!G357)","v":0}]
[null,null,null,null,null,null,null,{"$f":"COUNTIF(RELAIS!E$6:E$1812, INFO!G358)","v":0}]
[null,null,null,null,null,null,null,{"$f":"COUNTIF(RELAIS!E$6:E$1812, INFO!G359)","v":0}]
[null,null,null,null,null,null,null,{"$f":"COUNTIF(RELAIS!E$6:E$1812, INFO!G360)","v":0}]
[null,null,null,null,null,null,null,{"$f":"COUNTIF(RELAIS!E$6:E$1812, INFO!G361)","v":0}]
[null,null,null,null,null,null,null,{"$f":"COUNTIF(RELAIS!E$6:E$1812, INFO!G362)","v":0}]
[null,null,null,null,null,null,null,{"$f":"COUNTIF(RELAIS!E$6:E$1812, INFO!G363)","v":0}]
[null,null,null,null,null,null,null,{"$f":"COUNTIF(RELAIS!E$6:E$1812, INFO!G364)","v":0}]
[null,null,null,null,null,null,null,{"$f":"COUNTIF(RELAIS!E$6:E$1812, INFO!G365)","v":0}]
[null,null,null,null,null,null,null,{"$f":"COUNTIF(RELAIS!E$6:E$1812, INFO!G366)","v":0}]
[null,null,null,null,null,null,null,{"$f":"COUNTIF(RELAIS!E$6:E$1812, INFO!G367)","v":0}]
[null,null,null,null,null,null,null,{"$f":"COUNTIF(RELAIS!E$6:E$1812, INFO!G368)","v":0}]
[null,null,null,null,null,null,null,{"$f":"COUNTIF(RELAIS!E$6:E$1812, INFO!G369)","v":0}]
[null,null,null,null,null,null,null,{"$f":"COUNTIF(RELAIS!E$6:E$1812, INFO!G370)","v":0}]
[null,null,null,null,null,null,null,{"$f":"COUNTIF(RELAIS!E$6:E$1812, INFO!G371)","v":0}]
[null,null,null,null,null,null,null,{"$f":"COUNTIF(RELAIS!E$6:E$1812, INFO!G372)","v":0}]
[null,null,null,null,null,null,null,{"$f":"COUNTIF(RELAIS!E$6:E$1812, INFO!G373)","v":0}]
[null,null,null,null,null,null,null,{"$f":"COUNTIF(RELAIS!E$6:E$1812, INFO!G374)","v":0}]
[null,null,null,null,null,null,null,{"$f":"COUNTIF(RELAIS!E$6:E$1812, INFO!G375)","v":0}]
[null,null,null,null,null,null,null,{"$f":"COUNTIF(RELAIS!E$6:E$1812, INFO!G376)","v":0}]
[null,null,null,null,null,null,null,{"$f":"COUNTIF(RELAIS!E$6:E$1812, INFO!G377)","v":0}]
[null,null,null,null,null,null,null,{"$f":"COUNTIF(RELAIS!E$6:E$1812, INFO!G378)","v":0}]
[null,null,null,null,null,null,null,{"$f":"COUNTIF(RELAIS!E$6:E$1812, INFO!G379)","v":0}]
[null,null,null,null,null,null,null,{"$f":"COUNTIF(RELAIS!E$6:E$1812, INFO!G380)","v":0}]
[null,null,null,null,null,null,null,{"$f":"COUNTIF(RELAIS!E$6:E$1812, INFO!G381)","v":0}]
[null,null,null,null,null,null,null,{"$f":"COUNTIF(RELAIS!E$6:E$1812, INFO!G382)","v":0}]
[null,null,null,null,null,null,null,{"$f":"COUNTIF(RELAIS!E$6:E$1812, INFO!G383)","v":0}]
[null,null,null,null,null,null,null,{"$f":"COUNTIF(RELAIS!E$6:E$1812, INFO!G384)","v":0}]
[null,null,null,null,null,null,null,{"$f":"COUNTIF(RELAIS!E$6:E$1812, INFO!G385)","v":0}]
[null,null,null,null,null,null,null,{"$f":"COUNTIF(RELAIS!E$6:E$1812, INFO!G386)","v":0}]
[null,null,null,null,null,null,null,{"$f":"COUNTIF(RELAIS!E$6:E$1812, INFO!G387)","v":0}]
[null,null,null,null,null,null,null,{"$f":"COUNTIF(RELAIS!E$6:E$1812, INFO!G388)","v":0}]
[null,null,null,null,null,null,null,{"$f":"COUNTIF(RELAIS!E$6:E$1812, INFO!G389)","v":0}]
[null,null,null,null,null,null,null,{"$f":"COUNTIF(RELAIS!E$6:E$1812, INFO!G390)","v":0}]
[null,null,null,null,null,null,null,{"$f":"COUNTIF(RELAIS!E$6:E$1812, INFO!G391)","v":0}]
[null,null,null,null,null,null,null,{"$f":"COUNTIF(RELAIS!E$6:E$1812, INFO!G392)","v":0}]
[null,null,null,null,null,null,null,{"$f":"COUNTIF(RELAIS!E$6:E$1812, INFO!G393)","v":0}]
[null,null,null,null,null,null,null,{"$f":"COUNTIF(RELAIS!E$6:E$1812, INFO!G394)","v":0}]
[null,null,null,null,null,null,null,{"$f":"COUNTIF(RELAIS!E$6:E$1812, INFO!G395)","v":0}]
[null,null,null,null,null,null,null,{"$f":"COUNTIF(RELAIS!E$6:E$1812, INFO!G396)","v":0}]
[null,null,null,null,null,null,null,{"$f":"COUNTIF(RELAIS!E$6:E$1812, INFO!G397)","v":0}]
[null,null,null,null,null,null,null,{"$f":"COUNTIF(RELAIS!E$6:E$1812, INFO!G398)","v":0}]
[null,null,null,null,null,null,null,{"$f":"COUNTIF(RELAIS!E$6:E$1812, INFO!G399)","v":0}]
[null,null,null,null,null,null,null,{"$f":"COUNTIF(RELAIS!E$6:E$1812, INFO!G400)","v":0}]
[null,null,null,null,null,null,null,{"$f":"COUNTIF(RELAIS!E$6:E$1812, INFO!G401)","v":0}]
[null,null,null,null,null,null,null,{"$f":"COUNTIF(RELAIS!E$6:E$1812, INFO!G402)","v":0}]
[null,null,null,null,null,null,null,{"$f":"COUNTIF(RELAIS!E$6:E$1812, INFO!G403)","v":0}]
[null,null,null,null,null,null,null,{"$f":"COUNTIF(RELAIS!E$6:E$1812, INFO!G404)","v":0}]
[null,null,null,null,null,null,null,{"$f":"COUNTIF(RELAIS!E$6:E$1812, INFO!G405)","v":0}]
[null,null,null,null,null,null,null,{"$f":"COUNTIF(RELAIS!E$6:E$1812, INFO!G406)","v":0}]
[null,null,null,null,null,null,null,{"$f":"COUNTIF(RELAIS!E$6:E$1812, INFO!G407)","v":0}]
[null,null,null,null,null,null,null,{"$f":"COUNTIF(RELAIS!E$6:E$1812, INFO!G408)","v":0}]
[null,null,null,null,null,null,null,{"$f":"COUNTIF(RELAIS!E$6:E$1812, INFO!G409)","v":0}]
[null,null,null,null,null,null,null,{"$f":"COUNTIF(RELAIS!E$6:E$1812, INFO!G410)","v":0}]
[null,null,null,null,null,null,null,{"$f":"COUNTIF(RELAIS!E$6:E$1812, INFO!G411)","v":0}]
[null,null,null,null,null,null,null,{"$f":"COUNTIF(RELAIS!E$6:E$1812, INFO!G412)","v":0}]
[null,null,null,null,null,null,null,{"$f":"COUNTIF(RELAIS!E$6:E$1812, INFO!G413)","v":0}]
[null,null,null,null,null,null,null,{"$f":"COUNTIF(RELAIS!E$6:E$1812, INFO!G414)","v":0}]
[null,null,null,null,null,null,null,{"$f":"COUNTIF(RELAIS!E$6:E$1812, INFO!G415)","v":0}]
[null,null,null,null,null,null,null,{"$f":"COUNTIF(RELAIS!E$6:E$1812, INFO!G416)","v":0}]
[null,null,null,null,null,null,null,{"$f":"COUNTIF(RELAIS!E$6:E$1812, INFO!G417)","v":0}]
[null,null,null,null,null,null,null,{"$f":"COUNTIF(RELAIS!E$6:E$1812, INFO!G418)","v":0}]
[null,null,null,null,null,null,null,{"$f":"COUNTIF(RELAIS!E$6:E$1812, INFO!G419)","v":0}]
[null,null,null,null,null,null,null,{"$f":"COUNTIF(RELAIS!E$6:E$1812, INFO!G420)","v":0}]
[null,null,null,null,null,null,null,{"$f":"COUNTIF(RELAIS!E$6:E$1812, INFO!G421)","v":0}]
[null,null,null,null,null,null,null,{"$f":"COUNTIF(RELAIS!E$6:E$1812, INFO!G422)","v":0}]
[null,null,null,null,null,null,null,{"$f":"COUNTIF(RELAIS!E$6:E$1812, INFO!G423)","v":0}]
[null,null,null,null,null,null,null,{"$f":"COUNTIF(RELAIS!E$6:E$1812, INFO!G424)","v":0}]
[null,null,null,null,null,null,null,{"$f":"COUNTIF(RELAIS!E$6:E$1812, INFO!G425)","v":0}]
[null,null,null,null,null,null,null,{"$f":"COUNTIF(RELAIS!E$6:E$1812, INFO!G426)","v":0}]
[null,null,null,null,null,null,null,{"$f":"COUNTIF(RELAIS!E$6:E$1812, INFO!G427)","v":0}]
[null,null,null,null,null,null,null,{"$f":"COUNTIF(RELAIS!E$6:E$1812, INFO!G428)","v":0}]
[null,null,null,null,null,null,null,{"$f":"COUNTIF(RELAIS!E$6:E$1812, INFO!G429)","v":0}]
[null,null,null,null,null,null,null,{"$f":"COUNTIF(RELAIS!E$6:E$1812, INFO!G430)","v":0}]
[null,null,null,null,null,null,null,{"$f":"COUNTIF(RELAIS!E$6:E$1812, INFO!G431)","v":0}]
[null,null,null,null,null,null,null,{"$f":"COUNTIF(RELAIS!E$6:E$1812, INFO!G432)","v":0}]
[null,null,null,null,null,null,null,{"$f":"COUNTIF(RELAIS!E$6:E$1812, INFO!G433)","v":0}]
[null,null,null,null,null,null,null,{"$f":"COUNTIF(RELAIS!E$6:E$1812, INFO!G434)","v":0}]
[null,null,null,null,null,null,null,{"$f":"COUNTIF(RELAIS!E$6:E$1812, INFO!G435)","v":0}]
[null,null,null,null,null,null,null,{"$f":"COUNTIF(RELAIS!E$6:E$1812, INFO!G436)","v":0}]
[null,null,null,null,null,null,null,{"$f":"COUNTIF(RELAIS!E$6:E$1812, INFO!G437)","v":0}]
[null,null,null,null,null,null,null,{"$f":"COUNTIF(RELAIS!E$6:E$1812, INFO!G438)","v":0}]
[null,null,null,null,null,null,null,{"$f":"COUNTIF(RELAIS!E$6:E$1812, INFO!G439)","v":0}]
[null,null,null,null,null,null,null,{"$f":"COUNTIF(RELAIS!E$6:E$1812, INFO!G440)","v":0}]
[null,null,null,null,null,null,null,{"$f":"COUNTIF(RELAIS!E$6:E$1812, INFO!G441)","v":0}]
[null,null,null,null,null,null,null,{"$f":"COUNTIF(RELAIS!E$6:E$1812, INFO!G442)","v":0}]
[null,null,null,null,null,null,null,{"$f":"COUNTIF(RELAIS!E$6:E$1812, INFO!G443)","v":0}]
[null,null,null,null,null,null,null,{"$f":"COUNTIF(RELAIS!E$6:E$1812, INFO!G444)","v":0}]
[null,null,null,null,null,null,null,{"$f":"COUNTIF(RELAIS!E$6:E$1812, INFO!G445)","v":0}]
[null,null,null,null,null,null,null,{"$f":"COUNTIF(RELAIS!E$6:E$1812, INFO!G446)","v":0}]
[null,null,null,null,null,null,null,{"$f":"COUNTIF(RELAIS!E$6:E$1812, INFO!G447)","v":0}]
[null,null,null,null,null,null,null,{"$f":"COUNTIF(RELAIS!E$6:E$1812, INFO!G448)","v":0}]
[null,null,null,null,null,null,null,{"$f":"COUNTIF(RELAIS!E$6:E$1812, INFO!G449)","v":0}]
[null,null,null,null,null,null,null,{"$f":"COUNTIF(RELAIS!E$6:E$1812, INFO!G450)","v":0}]
[null,null,null,null,null,null,null,{"$f":"COUNTIF(RELAIS!E$6:E$1812, INFO!G451)","v":0}]
[null,null,null,null,null,null,null,{"$f":"COUNTIF(RELAIS!E$6:E$1812, INFO!G452)","v":0}]
[null,null,null,null,null,null,null,{"$f":"COUNTIF(RELAIS!E$6:E$1812, INFO!G453)","v":0}]
[null,null,null,null,null,null,null,{"$f":"COUNTIF(RELAIS!E$6:E$1812, INFO!G454)","v":0}]
[null,null,null,null,null,null,null,{"$f":"COUNTIF(RELAIS!E$6:E$1812, INFO!G455)","v":0}]
[null,null,null,null,null,null,null,{"$f":"COUNTIF(RELAIS!E$6:E$1812, INFO!G456)","v":0}]
[null,null,null,null,null,null,null,{"$f":"COUNTIF(RELAIS!E$6:E$1812, INFO!G457)","v":0}]
[null,null,null,null,null,null,null,{"$f":"COUNTIF(RELAIS!E$6:E$1812, INFO!G458)","v":0}]
[null,null,null,null,null,null,null,{"$f":"COUNTIF(RELAIS!E$6:E$1812, INFO!G459)","v":0}]
[null,null,null,null,null,null,null,{"$f":"COUNTIF(RELAIS!E$6:E$1812, INFO!G460)","v":0}]
[null,null,null,null,null,null,null,{"$f":"COUNTIF(RELAIS!E$6:E$1812, INFO!G461)","v":0}]
[null,null,null,null,null,null,null,{"$f":"COUNTIF(RELAIS!E$6:E$1812, INFO!G462)","v":0}]
[null,null,null,null,null,null,null,{"$f":"COUNTIF(RELAIS!E$6:E$1812, INFO!G463)","v":0}]
[null,null,null,null,null,null,null,{"$f":"COUNTIF(RELAIS!E$6:E$1812, INFO!G464)","v":0}]
[null,null,null,null,null,null,null,{"$f":"COUNTIF(RELAIS!E$6:E$1812, INFO!G465)","v":0}]
[null,null,null,null,null,null,null,{"$f":"COUNTIF(RELAIS!E$6:E$1812, INFO!G466)","v":0}]
[null,null,null,null,null,null,null,{"$f":"COUNTIF(RELAIS!E$6:E$1812, INFO!G467)","v":0}]
[null,null,null,null,null,null,null,{"$f":"COUNTIF(RELAIS!E$6:E$1812, INFO!G468)","v":0}]
[null,null,null,null,null,null,null,{"$f":"COUNTIF(RELAIS!E$6:E$1812, INFO!G469)","v":0}]
[null,null,null,null,null,null,null,{"$f":"COUNTIF(RELAIS!E$6:E$1812, INFO!G470)","v":0}]
[null,null,null,null,null,null,null,{"$f":"COUNTIF(RELAIS!E$6:E$1812, INFO!G471)","v":0}]
[null,null,null,null,null,null,null,{"$f":"COUNTIF(RELAIS!E$6:E$1812, INFO!G472)","v":0}]
[null,null,null,null,null,null,null,{"$f":"COUNTIF(RELAIS!E$6:E$1812, INFO!G473)","v":0}]
[null,null,null,null,null,null,null,{"$f":"COUNTIF(RELAIS!E$6:E$1812, INFO!G474)","v":0}]
[null,null,null,null,null,null,null,{"$f":"COUNTIF(RELAIS!E$6:E$1812, INFO!G475)","v":0}]
[null,null,null,null,null,null,null,{"$f":"COUNTIF(RELAIS!E$6:E$1812, INFO!G476)","v":0}]
[null,null,null,null,null,null,null,{"$f":"COUNTIF(RELAIS!E$6:E$1812, INFO!G477)","v":0}]
[null,null,null,null,null,null,null,{"$f":"COUNTIF(RELAIS!E$6:E$1812, INFO!G478)","v":0}]
[null,null,null,null,null,null,null,{"$f":"COUNTIF(RELAIS!E$6:E$1812, INFO!G479)","v":0}]
[null,null,null,null,null,null,null,{"$f":"COUNTIF(RELAIS!E$6:E$1812, INFO!G480)","v":0}]
[null,null,null,null,null,null,null,{"$f":"COUNTIF(RELAIS!E$6:E$1812, INFO!G481)","v":0}]
[null,null,null,null,null,null,null,{"$f":"COUNTIF(RELAIS!E$6:E$1812, INFO!G482)","v":0}]
[null,null,null,null,null,null,null,{"$f":"COUNTIF(RELAIS!E$6:E$1812, INFO!G483)","v":0}]
[null,null,null,null,null,null,null,{"$f":"COUNTIF(RELAIS!E$6:E$1812, INFO!G484)","v":0}]
[null,null,null,null,null,null,null,{"$f":"COUNTIF(RELAIS!E$6:E$1812, INFO!G485)","v":0}]
[null,null,null,null,null,null,null,{"$f":"COUNTIF(RELAIS!E$6:E$1812, INFO!G486)","v":0}]
[null,null,null,null,null,null,null,{"$f":"COUNTIF(RELAIS!E$6:E$1812, INFO!G487)","v":0}]
[null,null,null,null,null,null,null,{"$f":"COUNTIF(RELAIS!E$6:E$1812, INFO!G488)","v":0}]
[null,null,null,null,null,null,null,{"$f":"COUNTIF(RELAIS!E$6:E$1812, INFO!G489)","v":0}]
[null,null,null,null,null,null,null,{"$f":"COUNTIF(RELAIS!E$6:E$1812, INFO!G490)","v":0}]
[null,null,null,null,null,null,null,{"$f":"COUNTIF(RELAIS!E$6:E$1812, INFO!G491)","v":0}]
[null,null,null,null,null,null,null,{"$f":"COUNTIF(RELAIS!E$6:E$1812, INFO!G492)","v":0}]
[null,null,null,null,null,null,null,{"$f":"COUNTIF(RELAIS!E$6:E$1812, INFO!G493)","v":0}]
[null,null,null,null,null,null,null,{"$f":"COUNTIF(RELAIS!E$6:E$1812, INFO!G494)","v":0}]
[null,null,null,null,null,null,null,{"$f":"COUNTIF(RELAIS!E$6:E$1812, INFO!G495)","v":0}]
[null,null,null,null,null,null,null,{"$f":"COUNTIF(RELAIS!E$6:E$1812, INFO!G496)","v":0}]
[null,null,null,null,null,null,null,{"$f":"COUNTIF(RELAIS!E$6:E$1812, INFO!G497)","v":0}]
[null,null,null,null,null,null,null,{"$f":"COUNTIF(RELAIS!E$6:E$1812, INFO!G498)","v":0}]
[null,null,null,null,null,null,null,{"$f":"COUNTIF(RELAIS!E$6:E$1812, INFO!G499)","v":0}]
[null,null,null,null,null,null,null,{"$f":"COUNTIF(RELAIS!E$6:E$1812, INFO!G500)","v":0}]
[null,null,null,null,null,null,null,{"$f":"COUNTIF(RELAIS!E$6:E$1812, INFO!G501)","v":0}]